Workbook

Sheet I.3 Grasslands
F1: I.3
A2: Client: | B2: FDC
A3: Year End: | B3: =#REF! -> 
A4: Description: | B4: Inventory
A6: Objective:
A8: The objective of this working paper is to agree the lead with the inventory listing.
A10: Method:
A12: Agree the total per the inventory listing to the total per the lead schedule.
A14: Work Performed:
A17: Listing received
A18: ERF | B18: Stock | C18: Number | D18: Selling price | E18: Cost price | F18: Stock
B19: 31.03.2020 | F19: 30.09.2020
A20: 9920 | B20: 12,304.62 | E20: 0 | F20: 12,304.62
A21: 10016 | B21: 15,838.93 | E21: 0 | F21: 15,838.93
A22: 10042 | B22: 14,966.26 | E22: 0 | F22: 14,966.26
A23: 10050 | B23: 17,671.53 | E23: 0 | F23: 17,671.53
A24: 10545 | B24: 71,275.18 | E24: 0 | F24: 71,275.18
A25: 10559 | B25: 14,049.96 | E25: 0 | F25: 14,049.96
A26: 10669 | B26: 17,291.92 | E26: 0 | F26: 17,291.92
A27: 15914 | B27: 13,439.09 | E27: 0 | F27: 13,439.09
A28: 15932 | B28: 15,315.33 | E28: 0 | F28: 15,315.33
A29: 16791 | B29: 1,054,663.25 | E29: 0 | F29: 1,054,663.25
B31: =SUM(B20:B29) -> 1,246,816.08 | D31: =SUM(D20:D29) -> 0 | E31: =SUM(E20:E29) -> 0 | F31: =SUM(F20:F29) -> 1,246,816.08
A34: Amount as per client listing | B34: =F31 -> 1,246,816.08
A35: Amount as per Trial balance | C35: I.2
A36: Difference | B36: =B34-B35 -> 1,246,816.08 | C36: insignificant, accept
A39: Conclusion:
A40: The listing agrees to the lead schedule

Sheet I.4- Makwa
G1: I.4
A2: Client: | B2: FDC
A3: Year End: | B3: ='I.3 Grasslands'!B3 -> 
A4: Description: | B4: Inventory
A6: Objective:
A8: The objective of this working paper is to agree the lead with the inventory listing.
A10: Method:
A12: Agree the total per the inventory listing to the total per the lead schedule.
A14: Work Performed:
A18: ERF | B18: Description | C18: Date | D18: Stock | E18: Selling price | F18: Cost Price | G18: Stock
D19: 31-9-93 | G19: 2020-03-31
A20: 1 | B20: Makwa | C20: 07/10/91 | D20: 0.00 | F20: =IF(E20>1,#REF!,0) -> 0.00 | G20: 0.00
A21: =A20+1 -> 2 | B21: Makwa | C21: 07/10/91 | D21: 0.00 | F21: =IF(E21>1,#REF!,0) -> 0.00 | G21: 0.00
A22: 3 | B22: Makwa | C22: 07/10/91 | D22: 4972.17 | F22: =IF(E22>1,#REF!,0) -> 0.00 | G22: 1.00
A23: 4 | B23: Makwa | C23: 07/10/91 | D23: 4972.17 | F23: =IF(E23>1,#REF!,0) -> 0.00 | G23: 1.00
A24: 5 | B24: Makwa | C24: 07/10/91 | D24: 4972.17 | F24: =IF(E24>1,#REF!,0) -> 0.00 | G24: 1.00
A25: 6 | B25: Makwa | C25: 07/10/91 | D25: 4972.17 | F25: =IF(E25>1,#REF!,0) -> 0.00 | G25: 1.00
A26: 7 | B26: Makwa | C26: 07/10/91 | D26: 4972.17 | F26: =IF(E26>1,#REF!,0) -> 0.00 | G26: 1.00
A27: 8 | B27: Makwa | C27: 07/10/91 | D27: 4972.17 | F27: =IF(E27>1,#REF!,0) -> 0.00 | G27: 1.00
A28: 9 | B28: Makwa | C28: 07/10/91 | D28: 4972.17 | F28: =IF(E28>1,#REF!,0) -> 0.00 | G28: 1.00
A29: 10 | B29: Makwa | C29: 07/10/91 | D29: 4972.17 | F29: =IF(E29>1,#REF!,0) -> 0.00 | G29: 1.00
A30: 11 | B30: Makwa | C30: 07/10/91 | D30: 4972.17 | F30: =IF(E30>1,#REF!,0) -> 0.00 | G30: 1.00
A31: 12 | B31: Makwa | C31: 07/10/91 | D31: 0.00 | F31: =IF(E31>1,#REF!,0) -> 0.00 | G31: 0.00
A32: 13 | B32: Makwa | C32: 07/10/91 | D32: 6331.23 | F32: =IF(E32>1,#REF!,0) -> 0.00 | G32: 1.00
A33: 14 | B33: Makwa | C33: 07/10/91 | D33: 6298.08 | F33: =IF(E33>1,#REF!,0) -> 0.00 | G33: 1.00
A34: 15 | B34: Makwa | C34: 07/10/91 | D34: 4806.43 | F34: =IF(E34>1,#REF!,0) -> 0.00 | G34: 1.00
A35: 16 | B35: Makwa | C35: 07/10/91 | D35: 4806.43 | F35: =IF(E35>1,#REF!,0) -> 0.00 | G35: 1.00
A36: 17 | B36: Makwa | C36: 07/10/91 | D36: 5303.65 | F36: =IF(E36>1,#REF!,0) -> 0.00 | G36: 1.00
A37: 18 | B37: Makwa | C37: 07/10/91 | D37: 0.00 | F37: =IF(E37>1,#REF!,0) -> 0.00 | G37: 0.00
A38: 19 | B38: Makwa | C38: 07/10/91 | D38: 5303.65 | F38: =IF(E38>1,#REF!,0) -> 0.00 | G38: 0.00
A39: 20 | B39: Makwa | C39: 07/10/91 | D39: 0.00 | F39: =IF(E39>1,#REF!,0) -> 0.00 | G39: 1.00
A40: 21 | B40: Makwa | C40: 07/10/91 | D40: 5303.65 | F40: =IF(E40>1,#REF!,0) -> 0.00 | G40: 1.00
A41: 22 | B41: Makwa | C41: 07/10/91 | D41: 5303.65 | F41: =IF(E41>1,#REF!,0) -> 0.00 | G41: 1.00
A42: 23 | B42: Makwa | C42: 07/10/91 | D42: 5303.65 | F42: =IF(E42>1,#REF!,0) -> 0.00 | G42: 1.00
A43: 24 | B43: Makwa | C43: 07/10/91 | D43: 5303.65 | F43: =IF(E43>1,#REF!,0) -> 0.00 | G43: 1.00
A44: 25 | B44: Makwa | C44: 07/10/91 | D44: 5303.65 | F44: =IF(E44>1,#REF!,0) -> 0.00 | G44: 1.00
A45: 26 | B45: Makwa | C45: 07/10/91 | D45: 5718.00 | F45: =IF(E45>1,#REF!,0) -> 0.00 | G45: 1.00
A46: 27 | B46: Makwa | C46: 07/10/91 | D46: 0.00 | F46: =IF(E46>1,#REF!,0) -> 0.00 | G46: 0.00
A47: 28 | B47: Makwa | C47: 07/10/91 | D47: 7557.70 | F47: =IF(E47>1,#REF!,0) -> 0.00 | G47: 1.00
A48: 29 | B48: Makwa | C48: 07/10/91 | D48: 4474.95 | F48: =IF(E48>1,#REF!,0) -> 0.00 | G48: 1.00
A49: 30 | B49: Makwa | C49: 07/10/91 | D49: 4474.95 | F49: =IF(E49>1,#REF!,0) -> 0.00 | G49: 1.00
A50: 31 | B50: Makwa | C50: 07/10/91 | D50: 4358.94 | F50: =IF(E50>1,#REF!,0) -> 0.00 | G50: 1.00
A51: 32 | B51: Makwa | C51: 07/10/91 | D51: 5088.19 | F51: =IF(E51>1,#REF!,0) -> 0.00 | G51: 1.00
A52: 33 | B52: Makwa | C52: 07/10/91 | D52: 5635.13 | F52: =IF(E52>1,#REF!,0) -> 0.00 | G52: 1.00
A53: 34 | B53: Makwa | C53: 07/10/91 | D53: 5635.13 | F53: =IF(E53>1,#REF!,0) -> 0.00 | G53: 1.00
A54: 35 | B54: Makwa | C54: 07/10/91 | D54: 5303.65 | F54: =IF(E54>1,#REF!,0) -> 0.00 | G54: 1.00
A55: 36 | B55: Makwa | C55: 07/10/91 | D55: 4972.17 | F55: =IF(E55>1,#REF!,0) -> 0.00 | G55: 1.00
A56: 37 | B56: Makwa | C56: 07/10/91 | D56: 4972.17 | F56: =IF(E56>1,#REF!,0) -> 0.00 | G56: 1.00
A57: 38 | B57: Makwa | C57: 07/10/91 | D57: 4972.17 | F57: =IF(E57>1,#REF!,0) -> 0.00 | G57: 1.00
A58: 39 | B58: Makwa | C58: 07/10/91 | D58: 4972.17 | F58: =IF(E58>1,#REF!,0) -> 0.00 | G58: 1.00
A59: 40 | B59: Makwa | C59: 07/10/91 | D59: 4972.17 | F59: =IF(E59>1,#REF!,0) -> 0.00 | G59: 1.00
A60: 41 | B60: Makwa | C60: 07/10/91 | D60: 4972.17 | F60: =IF(E60>1,#REF!,0) -> 0.00 | G60: 1.00
A61: 42 | B61: Makwa | C61: 07/10/91 | D61: 4972.17 | F61: =IF(E61>1,#REF!,0) -> 0.00 | G61: 1.00
A62: 43 | B62: Makwa | C62: 07/10/91 | D62: 5303.65 | F62: =IF(E62>1,#REF!,0) -> 0.00 | G62: 1.00
A63: 44 | B63: Makwa | C63: 07/10/91 | D63: 5999.75 | F63: =IF(E63>1,#REF!,0) -> 0.00 | G63: 1.00
A64: 45 | B64: Makwa | C64: 07/10/91 | D64: 5834.01 | F64: =IF(E64>1,#REF!,0) -> 0.00 | G64: 1.00
A65: 46 | B65: Makwa | C65: 07/10/91 | D65: 5303.65 | F65: =IF(E65>1,#REF!,0) -> 0.00 | G65: 1.00
A66: 47 | B66: Makwa | C66: 07/10/91 | D66: 5303.65 | F66: =IF(E66>1,#REF!,0) -> 0.00 | G66: 1.00
A67: 48 | B67: Makwa | C67: 07/10/91 | D67: 0.00 | F67: =IF(E67>1,#REF!,0) -> 0.00 | G67: 0.00
A68: 49 | B68: Makwa | C68: 07/10/91 | D68: 0.00 | F68: =IF(E68>1,#REF!,0) -> 0.00 | G68: 0.00
A69: 50 | B69: Makwa | C69: 07/10/91 | D69: 0.00 | F69: =IF(E69>1,#REF!,0) -> 0.00 | G69: 0.00
A70: 51 | B70: Makwa | C70: 07/10/91 | D70: 4723.56 | F70: =IF(E70>1,#REF!,0) -> 0.00 | G70: 1.00
A71: 52 | B71: Makwa | C71: 07/10/91 | D71: 4524.68 | F71: =IF(E71>1,#REF!,0) -> 0.00 | G71: 1.00
A72: 53 | B72: Makwa | C72: 07/10/91 | D72: 7590.85 | F72: =IF(E72>1,#REF!,0) -> 0.00 | G72: 1.00
A73: 54 | B73: Makwa | C73: 07/10/91 | D73: 6331.23 | F73: =IF(E73>1,#REF!,0) -> 0.00 | G73: 1.00
A74: 55 | B74: Makwa | C74: 07/10/91 | D74: 7325.66 | F74: =IF(E74>1,#REF!,0) -> 0.00 | G74: 1.00
A75: 56 | B75: Makwa | C75: 07/10/91 | D75: 5850.59 | F75: =IF(E75>1,#REF!,0) -> 0.00 | G75: 1.00
A76: 57 | B76: Makwa | C76: 07/10/91 | D76: 8767.59 | F76: =IF(E76>1,#REF!,0) -> 0.00 | G76: 1.00
A77: 58 | B77: Makwa | C77: 07/10/91 | D77: 5999.75 | F77: =IF(E77>1,#REF!,0) -> 0.00 | G77: 1.00
A78: 59 | B78: Makwa | C78: 07/10/91 | D78: 4723.56 | F78: =IF(E78>1,#REF!,0) -> 0.00 | G78: 1.00
A79: 60 | B79: Makwa | C79: 07/10/91 | D79: 4723.56 | F79: =IF(E79>1,#REF!,0) -> 0.00 | G79: 1.00
A80: 61 | B80: Makwa | C80: 07/10/91 | D80: 5403.09 | F80: =IF(E80>1,#REF!,0) -> 0.00 | G80: 1.00
A81: 62 | B81: Makwa | C81: 07/10/91 | D81: 5651.70 | F81: =IF(E81>1,#REF!,0) -> 0.00 | G81: 1.00
A82: 63 | B82: Makwa | C82: 07/10/91 | D82: 5817.44 | F82: =IF(E82>1,#REF!,0) -> 0.00 | G82: 1.00
A83: 64 | B83: Makwa | C83: 07/10/91 | D83: 6430.67 | F83: =IF(E83>1,#REF!,0) -> 0.00 | G83: 1.00
A84: 65 | B84: Makwa | C84: 07/10/91 | D84: 4972.17 | F84: =IF(E84>1,#REF!,0) -> 0.00 | G84: 1.00
A85: =A84+1 -> 66 | B85: Makwa | C85: 07/10/91 | D85: 4972.17 | F85: =IF(E85>1,#REF!,0) -> 0.00 | G85: 1.00
A86: 67 | B86: Makwa | C86: 07/10/91 | D86: 4972.17 | F86: =IF(E86>1,#REF!,0) -> 0.00 | G86: 1.00
A87: 68 | B87: Makwa | C87: 07/10/91 | D87: 4972.17 | F87: =IF(E87>1,#REF!,0) -> 0.00 | G87: 1.00
A88: 69 | B88: Makwa | C88: 07/10/91 | D88: 4972.17 | F88: =IF(E88>1,#REF!,0) -> 0.00 | G88: 1.00
A89: 70 | B89: Makwa | C89: 07/10/91 | D89: 4972.17 | F89: =IF(E89>1,#REF!,0) -> 0.00 | G89: 1.00
A90: 71 | B90: Makwa | C90: 07/10/91 | D90: 8601.86 | F90: =IF(E90>1,#REF!,0) -> 0.00 | G90: 1.00
A91: 72 | B91: Makwa | C91: 07/10/91 | D91: 5966.60 | F91: =IF(E91>1,#REF!,0) -> 0.00 | G91: 1.00
A92: 73 | B92: Makwa | C92: 07/10/91 | D92: 4972.17 | F92: =IF(E92>1,#REF!,0) -> 0.00 | G92: 1.00
A93: 74 | B93: Makwa | C93: 07/10/91 | D93: 4972.17 | F93: =IF(E93>1,#REF!,0) -> 0.00 | G93: 1.00
A94: 75 | B94: Makwa | C94: 07/10/91 | D94: 4972.17 | F94: =IF(E94>1,#REF!,0) -> 0.00 | G94: 1.00
A95: 76 | B95: Makwa | C95: 07/10/91 | D95: 4972.17 | F95: =IF(E95>1,#REF!,0) -> 0.00 | G95: 1.00
A96: 77 | B96: Makwa | C96: 07/10/91 | D96: 4972.17 | F96: =IF(E96>1,#REF!,0) -> 0.00 | G96: 1.00
A97: 78 | B97: Makwa | C97: 07/10/91 | D97: 4972.17 | F97: =IF(E97>1,#REF!,0) -> 0.00 | G97: 1.00
A98: 79 | B98: Makwa | C98: 07/10/91 | D98: 4972.17 | F98: =IF(E98>1,#REF!,0) -> 0.00 | G98: 1.00
A99: 80 | B99: Makwa | C99: 07/10/91 | D99: 8270.38 | F99: =IF(E99>1,#REF!,0) -> 0.00 | G99: 1.00
A100: 81 | B100: Makwa | C100: 07/10/91 | D100: 5204.21 | F100: =IF(E100>1,#REF!,0) -> 0.00 | G100: 1.00
A101: 82 | B101: Makwa | C101: 07/10/91 | D101: 4640.69 | F101: =IF(E101>1,#REF!,0) -> 0.00 | G101: 1.00
A102: 83 | B102: Makwa | C102: 07/10/91 | D102: 4972.17 | F102: =IF(E102>1,#REF!,0) -> 0.00 | G102: 1.00
A103: 84 | B103: Makwa | C103: 07/10/91 | D103: 4972.17 | F103: =IF(E103>1,#REF!,0) -> 0.00 | G103: 1.00
A104: 85 | B104: Makwa | C104: 07/10/91 | D104: 4972.17 | F104: =IF(E104>1,#REF!,0) -> 0.00 | G104: 1.00
A105: 86 | B105: Makwa | C105: 07/10/91 | D105: 4972.17 | F105: =IF(E105>1,#REF!,0) -> 0.00 | G105: 1.00
A106: 87 | B106: Makwa | C106: 07/10/91 | D106: 7574.27 | F106: =IF(E106>1,#REF!,0) -> 0.00 | G106: 1.00
A107: 88 | B107: Makwa | C107: 07/10/91 | D107: 7358.81 | F107: =IF(E107>1,#REF!,0) -> 0.00 | G107: 1.00
A108: 89 | B108: Makwa | C108: 07/10/91 | D108: 4972.17 | F108: =IF(E108>1,#REF!,0) -> 0.00 | G108: 1.00
A109: 90 | B109: Makwa | C109: 07/10/91 | D109: 7706.86 | F109: =IF(E109>1,#REF!,0) -> 0.00 | G109: 1.00
A110: 91 | B110: Makwa | C110: 07/10/91 | D110: 6066.05 | F110: =IF(E110>1,#REF!,0) -> 0.00 | G110: 1.00
A111: 92 | B111: Makwa | C111: 07/10/91 | D111: 6298.08 | F111: =IF(E111>1,#REF!,0) -> 0.00 | G111: 1.00
A112: 93 | B112: Makwa | C112: 07/10/91 | D112: 6530.12 | F112: =IF(E112>1,#REF!,0) -> 0.00 | G112: 1.00
A113: 94 | B113: Makwa | C113: 07/10/91 | D113: 8402.97 | F113: =IF(E113>1,#REF!,0) -> 0.00 | G113: 1.00
A114: 95 | B114: Makwa | C114: 07/10/91 | D114: 7872.60 | F114: =IF(E114>1,#REF!,0) -> 0.00 | G114: 1.00
A115: 96 | B115: Makwa | C115: 07/10/91 | D115: 8286.95 | F115: =IF(E115>1,#REF!,0) -> 0.00 | G115: 1.00
A116: 97 | B116: Makwa | C116: 07/10/91 | D116: 6016.33 | F116: =IF(E116>1,#REF!,0) -> 0.00 | G116: 1.00
A117: 98 | B117: Makwa | C117: 07/10/91 | D117: 5452.81 | F117: =IF(E117>1,#REF!,0) -> 0.00 | G117: 1.00
A118: 99 | B118: Makwa | C118: 07/10/91 | D118: 4972.17 | F118: =IF(E118>1,#REF!,0) -> 0.00 | G118: 1.00
A119: 100 | B119: Makwa | C119: 07/10/91 | D119: 4972.17 | F119: =IF(E119>1,#REF!,0) -> 0.00 | G119: 1.00
A120: 101 | B120: Makwa | C120: 07/10/91 | D120: 4972.17 | F120: =IF(E120>1,#REF!,0) -> 0.00 | G120: 1.00
A121: 102 | B121: Makwa | C121: 07/10/91 | D121: 4972.17 | F121: =IF(E121>1,#REF!,0) -> 0.00 | G121: 1.00
A122: 103 | B122: Makwa | C122: 07/10/91 | D122: 5303.65 | F122: =IF(E122>1,#REF!,0) -> 0.00 | G122: 1.00
A123: 104 | B123: Makwa | C123: 07/10/91 | D123: 4972.17 | F123: =IF(E123>1,#REF!,0) -> 0.00 | G123: 1.00
A124: 105 | B124: Makwa | C124: 07/10/91 | D124: 4972.17 | F124: =IF(E124>1,#REF!,0) -> 0.00 | G124: 1.00
A125: 106 | B125: Makwa | C125: 07/10/91 | D125: 5104.76 | F125: =IF(E125>1,#REF!,0) -> 0.00 | G125: 1.00
A126: 107 | B126: Makwa | C126: 07/10/91 | D126: 5104.76 | F126: =IF(E126>1,#REF!,0) -> 0.00 | G126: 1.00
A127: 108 | B127: Makwa | C127: 07/10/91 | D127: 4972.17 | F127: =IF(E127>1,#REF!,0) -> 0.00 | G127: 1.00
A128: 109 | B128: Makwa | C128: 07/10/91 | D128: 4972.17 | F128: =IF(E128>1,#REF!,0) -> 0.00 | G128: 1.00
A129: 110 | B129: Makwa | C129: 07/10/91 | D129: 5303.65 | F129: =IF(E129>1,#REF!,0) -> 0.00 | G129: 1.00
A130: 111 | B130: Makwa | C130: 07/10/91 | D130: 4972.17 | F130: =IF(E130>1,#REF!,0) -> 0.00 | G130: 1.00
A131: 112 | B131: Makwa | C131: 07/10/91 | D131: 4972.17 | F131: =IF(E131>1,#REF!,0) -> 0.00 | G131: 1.00
A132: 113 | B132: Makwa | C132: 07/10/91 | D132: 4972.17 | F132: =IF(E132>1,#REF!,0) -> 0.00 | G132: 1.00
A133: 114 | B133: Makwa | C133: 07/10/91 | D133: 4972.17 | F133: =IF(E133>1,#REF!,0) -> 0.00 | G133: 1.00
A134: 115 | B134: Makwa | C134: 07/10/91 | D134: 7408.53 | F134: =IF(E134>1,#REF!,0) -> 0.00 | G134: 1.00
A135: 116 | B135: Makwa | C135: 07/10/91 | D135: 5104.76 | F135: =IF(E135>1,#REF!,0) -> 0.00 | G135: 1.00
A136: 117 | B136: Makwa | C136: 07/10/91 | D136: 5303.65 | F136: =IF(E136>1,#REF!,0) -> 0.00 | G136: 1.00
A137: 118 | B137: Makwa | C137: 07/10/91 | D137: 4972.17 | F137: =IF(E137>1,#REF!,0) -> 0.00 | G137: 1.00
A138: 119 | B138: Makwa | C138: 07/10/91 | D138: 4972.17 | F138: =IF(E138>1,#REF!,0) -> 0.00 | G138: 1.00
A139: 120 | B139: Makwa | C139: 07/10/91 | D139: 5104.76 | F139: =IF(E139>1,#REF!,0) -> 0.00 | G139: 1.00
A140: 121 | B140: Makwa | C140: 07/10/91 | D140: 5104.76 | F140: =IF(E140>1,#REF!,0) -> 0.00 | G140: 1.00
A141: 122 | B141: Makwa | C141: 07/10/91 | D141: 4972.17 | F141: =IF(E141>1,#REF!,0) -> 0.00 | G141: 1.00
A142: 123 | B142: Makwa | C142: 07/10/91 | D142: 4972.17 | F142: =IF(E142>1,#REF!,0) -> 0.00 | G142: 1.00
A143: 124 | B143: Makwa | C143: 07/10/91 | D143: 8253.80 | F143: =IF(E143>1,#REF!,0) -> 0.00 | G143: 1.00
A144: 125 | B144: Makwa | C144: 07/10/91 | D144: 6198.64 | F144: =IF(E144>1,#REF!,0) -> 0.00 | G144: 1.00
A145: 126 | B145: Makwa | C145: 07/10/91 | D145: 5303.65 | F145: =IF(E145>1,#REF!,0) -> 0.00 | G145: 1.00
A146: 127 | B146: Makwa | C146: 07/10/91 | D146: 5303.65 | F146: =IF(E146>1,#REF!,0) -> 0.00 | G146: 1.00
A147: 128 | B147: Makwa | C147: 07/10/91 | D147: 5303.65 | F147: =IF(E147>1,#REF!,0) -> 0.00 | G147: 1.00
A148: 129 | B148: Makwa | C148: 07/10/91 | D148: 6430.67 | F148: =IF(E148>1,#REF!,0) -> 0.00 | G148: 1.00
A149: =A148+1 -> 130 | B149: Makwa | C149: 07/10/91 | D149: 5386.52 | F149: =IF(E149>1,#REF!,0) -> 0.00 | G149: 1.00
A150: 131 | B150: Makwa | C150: 07/10/91 | D150: 6629.56 | F150: =IF(E150>1,#REF!,0) -> 0.00 | G150: 1.00
A151: 132 | B151: Makwa | C151: 07/10/91 | D151: 6629.56 | F151: =IF(E151>1,#REF!,0) -> 0.00 | G151: 1.00
A152: 133 | B152: Makwa | C152: 07/10/91 | D152: 7043.91 | F152: =IF(E152>1,#REF!,0) -> 0.00 | G152: 1.00
A153: 134 | B153: Makwa | C153: 07/10/91 | D153: 6215.21 | F153: =IF(E153>1,#REF!,0) -> 0.00 | G153: 1.00
A154: 135 | B154: Makwa | C154: 07/10/91 | D154: 6215.21 | F154: =IF(E154>1,#REF!,0) -> 0.00 | G154: 1.00
A155: 136 | B155: Makwa | C155: 07/10/91 | D155: 6215.21 | F155: =IF(E155>1,#REF!,0) -> 0.00 | G155: 1.00
A156: 137 | B156: Makwa | C156: 07/10/91 | D156: 5850.59 | F156: =IF(E156>1,#REF!,0) -> 0.00 | G156: 1.00
A157: 138 | B157: Makwa | C157: 07/10/91 | D157: 6994.19 | F157: =IF(E157>1,#REF!,0) -> 0.00 | G157: 1.00
A158: 139 | B158: Makwa | C158: 07/10/91 | D158: 4972.17 | F158: =IF(E158>1,#REF!,0) -> 0.00 | G158: 1.00
A159: 140 | B159: Makwa | C159: 07/10/91 | D159: 4972.17 | F159: =IF(E159>1,#REF!,0) -> 0.00 | G159: 1.00
A160: 141 | B160: Makwa | C160: 07/10/91 | D160: 6430.67 | F160: =IF(E160>1,#REF!,0) -> 0.00 | G160: 1.00
A161: 142 | B161: Makwa | C161: 07/10/91 | D161: 6430.67 | F161: =IF(E161>1,#REF!,0) -> 0.00 | G161: 1.00
A162: 143 | B162: Makwa | C162: 07/10/91 | D162: 4972.17 | F162: =IF(E162>1,#REF!,0) -> 0.00 | G162: 1.00
A163: 144 | B163: Makwa | C163: 07/10/91 | D163: 4972.17 | F163: =IF(E163>1,#REF!,0) -> 0.00 | G163: 1.00
A164: 145 | B164: Makwa | C164: 07/10/91 | D164: 4972.17 | F164: =IF(E164>1,#REF!,0) -> 0.00 | G164: 1.00
A165: 146 | B165: Makwa | C165: 07/10/91 | D165: 4972.17 | F165: =IF(E165>1,#REF!,0) -> 0.00 | G165: 1.00
A166: 147 | B166: Makwa | C166: 07/10/91 | D166: 4839.58 | F166: =IF(E166>1,#REF!,0) -> 0.00 | G166: 1.00
A167: 148 | B167: Makwa | C167: 07/10/91 | D167: 8419.54 | F167: =IF(E167>1,#REF!,0) -> 0.00 | G167: 1.00
A168: 149 | B168: Makwa | C168: 07/10/91 | D168: 7193.07 | F168: =IF(E168>1,#REF!,0) -> 0.00 | G168: 1.00
A169: 150 | B169: Makwa | C169: 07/10/91 | D169: 4972.17 | F169: =IF(E169>1,#REF!,0) -> 0.00 | G169: 1.00
A170: 151 | B170: Makwa | C170: 07/10/91 | D170: 4972.17 | F170: =IF(E170>1,#REF!,0) -> 0.00 | G170: 1.00
A171: 152 | B171: Makwa | C171: 07/10/91 | D171: 4972.17 | F171: =IF(E171>1,#REF!,0) -> 0.00 | G171: 1.00
A172: 153 | B172: Makwa | C172: 07/10/91 | D172: 5303.65 | F172: =IF(E172>1,#REF!,0) -> 0.00 | G172: 0.00
A173: 154 | B173: Makwa | C173: 07/10/91 | D173: 6629.56 | F173: =IF(E173>1,#REF!,0) -> 0.00 | G173: 1.00
A174: 155 | B174: Makwa | C174: 07/10/91 | D174: 6430.67 | F174: =IF(E174>1,#REF!,0) -> 0.00 | G174: 1.00
A175: 156 | B175: Makwa | C175: 07/10/91 | D175: 6629.56 | F175: =IF(E175>1,#REF!,0) -> 0.00 | G175: 1.00
A176: 157 | B176: Makwa | C176: 07/10/91 | D176: 4972.17 | F176: =IF(E176>1,#REF!,0) -> 0.00 | G176: 1.00
A177: 158 | B177: Makwa | C177: 07/10/91 | D177: 4972.17 | F177: =IF(E177>1,#REF!,0) -> 0.00 | G177: 1.00
A178: 159 | B178: Makwa | C178: 07/10/91 | D178: 6430.67 | F178: =IF(E178>1,#REF!,0) -> 0.00 | G178: 1.00
A179: 160 | B179: Makwa | C179: 07/10/91 | D179: 6430.67 | F179: =IF(E179>1,#REF!,0) -> 0.00 | G179: 1.00
A180: 161 | B180: Makwa | C180: 07/10/91 | D180: 4972.17 | F180: =IF(E180>1,#REF!,0) -> 0.00 | G180: 1.00
A181: 162 | B181: Makwa | C181: 07/10/91 | D181: 4972.17 | F181: =IF(E181>1,#REF!,0) -> 0.00 | G181: 1.00
A182: 163 | B182: Makwa | C182: 07/10/91 | D182: 6762.15 | F182: =IF(E182>1,#REF!,0) -> 0.00 | G182: 1.00
A183: 164 | B183: Makwa | C183: 07/10/91 | D183: 5171.06 | F183: =IF(E183>1,#REF!,0) -> 0.00 | G183: 1.00
A184: 165 | B184: Makwa | C184: 07/10/91 | D184: 4972.17 | F184: =IF(E184>1,#REF!,0) -> 0.00 | G184: 1.00
A185: 166 | B185: Makwa | C185: 07/10/91 | D185: 4972.17 | F185: =IF(E185>1,#REF!,0) -> 0.00 | G185: 1.00
A186: 167 | B186: Makwa | C186: 07/10/91 | D186: 4972.17 | F186: =IF(E186>1,#REF!,0) -> 0.00 | G186: 1.00
A187: 168 | B187: Makwa | C187: 07/10/91 | D187: 4972.17 | F187: =IF(E187>1,#REF!,0) -> 0.00 | G187: 1.00
A188: 169 | B188: Makwa | C188: 07/10/91 | D188: 6480.40 | F188: =IF(E188>1,#REF!,0) -> 0.00 | G188: 1.00
A189: 170 | B189: Makwa | C189: 07/10/91 | D189: 4441.81 | F189: =IF(E189>1,#REF!,0) -> 0.00 | G189: 1.00
A190: 171 | B190: Makwa | C190: 07/10/91 | D190: 4922.45 | F190: =IF(E190>1,#REF!,0) -> 0.00 | G190: 1.00
A191: 172 | B191: Makwa | C191: 07/10/91 | D191: 5353.37 | F191: =IF(E191>1,#REF!,0) -> 0.00 | G191: 1.00
A192: 173 | B192: Makwa | C192: 07/10/91 | D192: 4640.69 | F192: =IF(E192>1,#REF!,0) -> 0.00 | G192: 1.00
A193: 174 | B193: Makwa | C193: 07/10/91 | D193: 4640.69 | F193: =IF(E193>1,#REF!,0) -> 0.00 | G193: 1.00
A194: 175 | B194: Makwa | C194: 07/10/91 | D194: 4640.69 | F194: =IF(E194>1,#REF!,0) -> 0.00 | G194: 1.00
A195: 176 | B195: Makwa | C195: 07/10/91 | D195: 4640.69 | F195: =IF(E195>1,#REF!,0) -> 0.00 | G195: 1.00
A196: 177 | B196: Makwa | C196: 07/10/91 | D196: 4773.28 | F196: =IF(E196>1,#REF!,0) -> 0.00 | G196: 1.00
A197: 178 | B197: Makwa | C197: 07/10/91 | D197: 4773.28 | F197: =IF(E197>1,#REF!,0) -> 0.00 | G197: 1.00
A198: 179 | B198: Makwa | C198: 07/10/91 | D198: 4640.69 | F198: =IF(E198>1,#REF!,0) -> 0.00 | G198: 1.00
A199: 180 | B199: Makwa | C199: 07/10/91 | D199: 4640.69 | F199: =IF(E199>1,#REF!,0) -> 0.00 | G199: 1.00
A200: 181 | B200: Makwa | C200: 07/10/91 | D200: 4640.69 | F200: =IF(E200>1,#REF!,0) -> 0.00 | G200: 1.00
A201: 182 | B201: Makwa | C201: 07/10/91 | D201: 4640.69 | F201: =IF(E201>1,#REF!,0) -> 0.00 | G201: 1.00
A202: 183 | B202: Makwa | C202: 07/10/91 | D202: 4640.69 | F202: =IF(E202>1,#REF!,0) -> 0.00 | G202: 1.00
A203: 184 | B203: Makwa | C203: 07/10/91 | D203: 6845.02 | F203: =IF(E203>1,#REF!,0) -> 0.00 | G203: 1.00
A204: 185 | B204: Makwa | C204: 07/10/91 | D204: 4640.69 | F204: =IF(E204>1,#REF!,0) -> 0.00 | G204: 1.00
A205: 186 | B205: Makwa | C205: 07/10/91 | D205: 4441.81 | F205: =IF(E205>1,#REF!,0) -> 0.00 | G205: 1.00
A206: 187 | B206: Makwa | C206: 07/10/91 | D206: 7458.26 | F206: =IF(E206>1,#REF!,0) -> 0.00 | G206: 1.00
A207: 188 | B207: Makwa | C207: 07/10/91 | D207: 7458.26 | F207: =IF(E207>1,#REF!,0) -> 0.00 | G207: 1.00
A208: 189 | B208: Makwa | C208: 07/10/91 | D208: 8419.54 | F208: =IF(E208>1,#REF!,0) -> 0.00 | G208: 1.00
... 283 more rows

Sheet I.5 - Thabong
H1: I.5
A2: Client: | B2: FDC
A3: Year End: | B3: ='I.3 Grasslands'!B3 -> 
A4: Description: | B4: Inventory
A6: Objective:
A8: The objective of this working paper is to agree the lead with the inventory listing.
A10: Method:
A12: Agree the total per the inventory listing to the total per the lead schedule.
A14: Work Performed:
A17: ERF | B17: ERF NR. | C17: Stock | D17: Written off | E17: Loan Nr. | F17: Selling Price | G17: Cost of Sales | H17: Stock
C18: 2019-03-31 | H18: 2020-03-31
A19: 1090 | B19: 1 | C19: 1.00 | H19: =C19-D19-G19 -> 1.00
B20: 2 | C20: 1.00 | H20: 1.00
B21: 3 | C21: 1.00 | H21: 1.00
B22: 4 | C22: 1.00 | H22: 1.00
B23: 5 | C23: 1.00 | H23: 1.00
B24: 6 | C24: 1.00 | H24: 1.00
B25: 7 | C25: 1.00 | H25: 1.00
B26: 8 | C26: 1.00 | H26: 1.00
B27: 9 | C27: 1.00 | H27: 1.00
B28: 10 | C28: 1.00 | H28: 1.00
B29: 11 | C29: 1.00 | H29: 1.00
B30: 12 | C30: 1.00 | H30: 1.00
B31: 13 | C31: 1.00 | H31: 1.00
B32: 14 | C32: 1.00 | H32: 1.00
B33: 15 | C33: 1.00 | H33: 1.00
B34: 16 | C34: 1.00 | H34: 1.00
B35: 17 | C35: 1.00 | H35: 1.00
B36: 18 | C36: 1.00 | H36: 1.00
B37: 19 | C37: 1.00 | H37: 1.00
B38: 20 | C38: 1.00 | H38: 1.00
B39: 21 | C39: 1.00 | H39: 1.00
B40: 22 | C40: 1.00 | H40: 1.00
B41: 23 | C41: 1.00 | H41: 1.00
B42: 24 | C42: 1.00 | H42: 1.00
B43: 25 | C43: 1.00 | H43: 1.00
B44: 26 | C44: 1.00 | H44: 1.00
B45: 27 | C45: 1.00 | H45: 1.00
B46: 28 | C46: 1.00 | H46: 1.00
B47: B57 | C47: 1.00 | H47: 1.00
B48: 133 | C48: 1.00 | H48: 1.00
B49: 134 | C49: 1.00 | H49: 1.00
B50: 135 | C50: 1.00 | H50: 1.00
B51: 136 | C51: 1.00 | H51: 1.00
B52: 209 | C52: 1.00 | H52: 1.00
B53: 210 | C53: 1.00 | H53: 1.00
B54: 211 | C54: 1.00 | H54: 1.00
B55: 212 | C55: 1.00 | H55: 1.00
B56: 456 | C56: 1.00 | H56: 1.00
B57: 457 | C57: 1.00 | H57: 1.00
B58: 478 | C58: 1.00 | H58: 1.00
B59: 484 | C59: 1.00 | H59: 1.00
B60: 495 | C60: 1.00 | H60: 1.00
B61: 510 | C61: 1.00 | H61: 1.00
B62: 548 | C62: 1.00 | H62: 1.00
B63: 615 | C63: 1.00 | H63: 1.00
B64: 619 | C64: 1.00 | H64: 1.00
B65: 620 | C65: 1.00 | H65: 1.00
B66: 621 | C66: 1.00 | H66: 1.00
B67: 622 | C67: 1.00 | H67: 1.00
B68: 623 | C68: 1.00 | H68: 1.00
B69: 624 | C69: 1.00 | H69: 1.00
B70: 625 | C70: 1.00 | H70: 1.00
B71: 629 | C71: 1.00 | H71: 1.00
B72: 633 | C72: 1.00 | H72: 1.00
B73: 634 | C73: 1.00 | H73: 1.00
B74: 635 | C74: 1.00 | H74: 1.00
B75: 636 | C75: 1.00 | H75: 1.00
B76: 637 | C76: 1.00 | H76: 1.00
B77: 638 | C77: 1.00 | H77: 1.00
B78: 639 | C78: 1.00 | H78: 1.00
B79: 640 | C79: 1.00 | H79: 1.00
B80: 641 | C80: 1.00 | H80: 1.00
B81: 642 | C81: 1.00 | H81: 1.00
B82: 643 | C82: 1.00 | H82: 1.00
B83: 644 | C83: 1.00 | H83: =C83-D83-G83 -> 1.00
B84: 645 | C84: 1.00 | H84: 1.00
B85: 646 | C85: 1.00 | H85: 1.00
B86: 648 | C86: 1.00 | H86: 1.00
B87: 649 | C87: 1.00 | H87: 1.00
B88: 650 | C88: 1.00 | H88: 1.00
B89: 651 | C89: 1.00 | H89: 1.00
B90: 652 | C90: 1.00 | H90: 1.00
B91: 653 | C91: 1.00 | H91: 1.00
B92: 654 | C92: 1.00 | H92: 1.00
B93: 655 | C93: 1.00 | H93: 1.00
B94: 656 | C94: 1.00 | H94: 1.00
B95: 657 | C95: 1.00 | H95: 1.00
B96: 658 | C96: 1.00 | H96: 1.00
B97: 659 | C97: 1.00 | H97: 1.00
B98: 660 | C98: 1.00 | H98: 1.00
B99: 661 | C99: 1.00 | H99: 1.00
B100: 662 | C100: 1.00 | H100: 1.00
B101: 663 | C101: 1.00 | H101: 1.00
B102: 664 | C102: 1.00 | H102: 1.00
B103: 665 | C103: 1.00 | H103: 1.00
B104: 666 | C104: 1.00 | H104: 1.00
B105: 667 | C105: 1.00 | H105: 1.00
B106: 668 | C106: 1.00 | H106: 1.00
B107: 669 | C107: 1.00 | H107: 1.00
B108: 670 | C108: 1.00 | H108: 1.00
B109: 671 | C109: 1.00 | H109: 1.00
B110: 672 | C110: 1.00 | H110: 1.00
B111: 673 | C111: 1.00 | H111: 1.00
B112: 674 | C112: 1.00 | H112: 1.00
B113: 675 | C113: 1.00 | H113: 1.00
B114: 676 | C114: 1.00 | H114: 1.00
B115: 677 | C115: 1.00 | H115: 1.00
B116: 678 | C116: 1.00 | H116: 1.00
B117: 679 | C117: 1.00 | H117: 1.00
B118: 680 | C118: 1.00 | H118: 1.00
B119: 681 | C119: 1.00 | H119: 1.00
B120: 682 | C120: 1.00 | H120: 1.00
B121: 683 | C121: 1.00 | H121: 1.00
B122: 684 | C122: 1.00 | H122: 1.00
B123: 685 | C123: 1.00 | H123: 1.00
B124: 686 | C124: 1.00 | H124: 1.00
B125: 687 | C125: 1.00 | H125: 1.00
B126: 688 | C126: 1.00 | H126: 1.00
B127: 690 | C127: 1.00 | H127: 1.00
B128: 691 | C128: 1.00 | H128: 1.00
B129: 692 | C129: 1.00 | H129: 1.00
B130: 693 | C130: 1.00 | H130: 1.00
B131: 694 | C131: 1.00 | H131: 1.00
B132: 695 | C132: 1.00 | H132: 1.00
B133: 696 | C133: 1.00 | H133: 1.00
B134: 697 | C134: 1.00 | H134: 1.00
B135: 698 | C135: 1.00 | H135: 1.00
B136: 699 | C136: 1.00 | H136: 1.00
B137: 700 | C137: 1.00 | H137: 1.00
B138: 701 | C138: 1.00 | H138: 1.00
B139: 714 | C139: 1.00 | H139: 1.00
B140: 715 | C140: 1.00 | H140: 1.00
B141: 716 | C141: 1.00 | H141: 1.00
B142: 717 | C142: 1.00 | H142: 1.00
B143: 718 | C143: 1.00 | H143: 1.00
B144: 728 | C144: 1.00 | H144: 1.00
B145: 729 | C145: 1.00 | H145: 1.00
B146: 730 | C146: 1.00 | H146: 1.00
B147: 731 | C147: 1.00 | H147: =C147-D147-G147 -> 1.00
B148: 732 | C148: 1.00 | H148: 1.00
B149: 733 | C149: 1.00 | H149: 1.00
B150: 734 | C150: 1.00 | H150: 1.00
B151: 735 | C151: 1.00 | H151: 1.00
B152: 736 | C152: 1.00 | H152: 1.00
B153: 737 | C153: 1.00 | H153: 1.00
B154: 738 | C154: 1.00 | H154: 1.00
B155: 739 | C155: 1.00 | H155: 1.00
B156: 740 | C156: 1.00 | H156: 1.00
B157: 741 | C157: 1.00 | H157: 1.00
B158: 742 | C158: 1.00 | H158: 1.00
B159: 743 | C159: 1.00 | H159: 1.00
B160: 744 | C160: 1.00 | H160: 1.00
B161: 745 | C161: 1.00 | H161: 1.00
B162: 746 | C162: 1.00 | H162: 1.00
B163: 747 | C163: 1.00 | H163: 1.00
B164: 748 | C164: 1.00 | H164: 1.00
B165: 749 | C165: 1.00 | H165: 1.00
B166: 750 | C166: 1.00 | H166: 1.00
B167: 751 | C167: 1.00 | H167: 1.00
B168: 752 | C168: 1.00 | H168: 1.00
B169: 753 | C169: 1.00 | H169: 1.00
B170: 754 | C170: 1.00 | H170: 1.00
B171: 755 | C171: 1.00 | H171: 1.00
B172: 756 | C172: 1.00 | H172: 1.00
B173: 757 | C173: 1.00 | H173: 1.00
B174: 758 | C174: 1.00 | H174: 1.00
B175: 759 | C175: 1.00 | H175: 1.00
B176: 760 | C176: 1.00 | H176: 1.00
B177: 761 | C177: 1.00 | H177: 1.00
B178: 762 | C178: 1.00 | H178: 1.00
B179: 763 | C179: 1.00 | H179: 1.00
B180: 764 | C180: 1.00 | H180: 1.00
B181: 765 | C181: 1.00 | H181: 1.00
B182: 766 | C182: 1.00 | H182: 1.00
B183: 767 | C183: 1.00 | H183: 1.00
B184: 768 | C184: 1.00 | H184: 1.00
B185: 769 | C185: 1.00 | H185: 1.00
B186: 770 | C186: 1.00 | H186: 1.00
B187: 771 | C187: 1.00 | H187: 1.00
B188: 772 | C188: 1.00 | H188: 1.00
B189: 773 | C189: 1.00 | H189: 1.00
B190: 774 | C190: 1.00 | H190: 1.00
B191: 789 | C191: 1.00 | H191: 1.00
B192: 823 | C192: 1.00 | H192: 1.00
B193: 983 | C193: 1.00 | H193: 1.00
B194: 1023 | C194: 1.00 | H194: 1.00
B195: 1102 | C195: 1.00 | H195: 1.00
B196: 1161 | C196: 1.00 | H196: 1.00
B197: 1186 | C197: 1.00 | H197: 1.00
B198: 1187 | C198: 1.00 | H198: 1.00
B199: 1190 | C199: 1.00 | H199: 1.00
B200: 1191 | C200: 1.00 | H200: 1.00
B201: 1196 | C201: 1.00 | H201: 1.00
B202: 1255 | C202: 1.00 | H202: 1.00
B203: 1436 | C203: 1.00 | H203: 1.00
B204: 1437 | C204: 1.00 | H204: 1.00
B205: 1438 | C205: 1.00 | H205: 1.00
B206: - | C206: - | D206: - | E206: - | F206: - | G206: - | H206: -
B207: =COUNTA(B19:B205) -> 187 | C207: =SUM(C19:C205) -> 187.00 | D207: =SUM(D19:D205) -> 0.00 | F207: =SUM(F19:F205) -> 0.00 | G207: =SUM(G19:G205) -> 0.00 | H207: =C207-D207-G207 -> 187.00
... 9 more rows

Sheet I.6-Qwolaqwe
G1: I.6
A2: Client: | B2: FDC
A3: Year End: | B3: ='I.3 Grasslands'!B3 -> 
A4: Description: | B4: Inventory
A6: Objective:
A8: The objective of this working paper is to agree the lead with the inventory listing.
A10: Method:
A12: Agree the total per the inventory listing to the total per the lead schedule.
A14: Work Performed:
A17: QHOLAQWE | B17: ERF NR. | C17: Stock | D17: Loan Nr. | E17: Selling Price | F17: Cost of Sales | G17: Stock
A18: ERF NR. | C18: 31-03-19 | G18: 31-03-20
B19: 827B | C19: 1.00 | F19: =IF(E19>1,#REF!,0) -> 0.00 | G19: =C19-F19 -> 1.00
B20: 962 | C20: 1.00 | F20: =IF(E20>1,#REF!,0) -> 0.00 | G20: =C20-F20 -> 1.00
B21: 1065 | C21: 1.00 | F21: =IF(E21>1,#REF!,0) -> 0.00 | G21: =C21-F21 -> 1.00
B22: 1247 | C22: 1.00 | F22: =IF(E22>1,#REF!,0) -> 0.00 | G22: =C22-F22 -> 1.00
B23: - | C23: - | E23: - | F23: - | G23: -
B24: 4 | C24: =SUM(C19:C22) -> 4.00 | E24: =SUM(E19:E23) -> 0.00 | F24: =SUM(F19:F23) -> 0.00 | G24: =C24-F24 -> 4.00
B25: - | C25: - | E25: - | F25: - | G25: -
A28: Amount as per client listing | B28: =C24 -> 4.00
A29: Amount as per Trial balance | C29: I.6
A30: Difference | B30: =B28-B29 -> 4.00
A33: Conclusion:
A35: The listing agrees to the lead schedule.

Sheet i.7-Khotsong
F1: I.2
A2: Client: | B2: FDC
A3: Year End: | B3: ='I.3 Grasslands'!B3 -> 
A4: Description: | B4: Inventory
A6: Objective:
A8: The objective of this working paper is to agree the lead with the inventory listing.
A10: Method:
A12: Agree the total per the inventory listing to the total per the lead schedule.
A14: Work Performed:
A17: KHOTSONG | C17: Stock | D17: Additions | E17: Written Off | F17: Stock
A18: ERF NR. | B18: ERF NR. | C18: 2019-03-31 | F18: 2020-03-31
B19: 1286 | C19: 1 | F19: =C19+D19-E19 -> 1
B20: 1441 | C20: 1 | F20: =C20+D20-E20 -> 1
B21: 1594 | C21: 1 | F21: =C21+D21-E21 -> 1
C23: - | D23: - | E23: - | F23: -
C24: =SUM(C19:C22) -> 3 | D24: =SUM(D19:D23) -> 0 | E24: =SUM(E19:E23) -> 0 | F24: =SUM(F19:F22) -> 3 | G24: I.2
C25: = | D25: = | E25: = | F25: =
A28: Amount as per client listing | B28: =C24 -> 3.00
A29: Amount as per Trial balance | C29: I.2
A30: Difference | B30: =B28-B29 -> 3.00
A33: Conclusion:
A35: The listing agrees to the lead schedule.

Sheet I.8-Moeding
E1: I.8
A2: Client: | B2: FDC
A3: Year End: | B3: ='I.3 Grasslands'!B3 -> 
A4: Description: | B4: Inventory
A6: Objective:
A8: The objective of this working paper is to agree the lead with the inventory listing.
A10: Method:
A12: Agree the total per the inventory listing to the total per the lead schedule.
A14: Work Performed:
A18: Stock | B18: Stock | C18: Additions | D18: Written Off | E18: Stock
A19: 31/03/99 | B19: 31/03/19 | E19: 31/03/20
A20: 1.00 | B20: 1.00 | E20: 1.00
A21: 1.00 | B21: 1.00 | E21: 1.00
A22: 1.00 | B22: 1.00 | E22: 1.00
A23: 1.00 | B23: 1.00 | E23: 1.00
A24: 1.00 | B24: 1.00 | E24: 1.00
A25: 1.00 | B25: 1.00 | E25: 1.00
A26: - | B26: - | C26: - | D26: - | E26: -
A27: 6.00 | B27: 6.00 | C27: 0.00 | D27: 0.00 | E27: 6.00
A28: = | B28: = | C28: = | D28: = | E28: =
A31: Amount as per client listing | B31: =B27 -> 6.00
A32: Amount as per Trial balance | C32: I.2
A33: Difference | B33: =B31-B32 -> 6.00
A35: Conclusion:
A37: The listing agrees to the lead schedule.

Sheet I.9-Thabong
H1: I.9
A2: Client: | B2: FDC
A3: Year End: | B3: ='I.3 Grasslands'!B3 -> 
A4: Description: | B4: Inventory
A6: Objective:
A8: The objective of this working paper is to agree the lead with the inventory listing.
A10: Method:
A12: Agree the total per the inventory listing to the total per the lead schedule.
A14: Work Performed:
A18: THABONG 11 | C18: Stock | D18: Written Off | E18: Loan Nr. | F18: Selling Price | G18: Cost of Sales | H18: Stock
A19: ERF | B19: ERF NR. | C19: 2019-03-31 | H19: 2020-03-31
B20: 2877 | C20: 1.00 | G20: =IF(F20>1,+#REF!-D20,0) -> 0.00 | H20: =C20-D20-G20 -> 1.00
B21: 2896 | C21: 1.00 | G21: =IF(F21>1,+#REF!-D21,0) -> 0.00 | H21: =C21-D21-G21 -> 1.00
B22: - | C22: = | D22: - | E22: = | F22: = | G22: = | H22: =
B23: 2 | C23: =SUM(C20:C21) -> 2.00 | D23: =SUM(D20:D22) -> 0.00 | F23: =SUM(F20:F22) -> 0.00 | G23: =SUM(G20:G22) -> 0.00 | H23: =SUM(H20:H21) -> 2.00
B24: - | C24: - | D24: - | E24: - | F24: - | G24: - | H24: -
A27: Amount as per client listing | B27: =C23 -> 2.00
A28: Amount as per Trial balance | C28: I.2
A29: Difference | B29: =B27-B28 -> 2.00
A32: Conclusion:
A34: The listing agrees to the lead schedule.

Sheet I.10-Thibela
H1: I.10
A2: Client: | B2: FDC
A3: Year End: | B3: ='I.3 Grasslands'!B3 -> 
A4: Description: | B4: Inventory
A6: Objective:
A8: The objective of this working paper is to agree the lead with the inventory listing.
A10: Method:
A12: Agree the total per the inventory listing to the total per the lead schedule.
A14: Work Performed:
B18: ERF NR | C18: Stock | D18: Journal | E18: Selling Price | F18: Cost of Sales | G18: Stock
C19: 2019-03-31 | G19: 2020-03-31
A20: * | B20: 18 | C20: 1.00 | G20: =C20-F20 -> 1.00
A21: * | B21: 20 | C21: 1.00 | G21: 1.00
A22: * | B22: 23 | C22: 1.00 | G22: 1.00
A23: * | B23: 27 | C23: 1.00 | G23: 1.00
A24: * | B24: 34 | C24: 1.00 | G24: =C24-F24 -> 1.00
A25: * | B25: 36 | C25: 1.00 | G25: =C25-F25 -> 1.00
A26: * | B26: 41 | C26: 1.00 | G26: 1.00
A27: * | B27: 61 | C27: 1.00 | G27: 1.00
A28: * | B28: 85 | C28: 1.00 | G28: 1.00
A29: * | B29: 105 | C29: 1.00 | G29: 1.00
A30: * | B30: 108 | C30: 1.00 | G30: 1.00
A31: * | B31: 109 | C31: 1.00 | G31: 1.00
B32: 172 | C32: 1.00 | G32: 1.00
A33: * | B33: 190 | C33: 1.00 | G33: 1.00
A34: * | B34: 191 | C34: 1.00 | G34: 1.00
C35: - | E35: - | F35: - | G35: -
C36: =SUM(C20:C35) -> 15.00 | E36: =SUM(E20:E35) -> 0.00 | F36: =SUM(F20:F35) -> 0.00 | G36: =SUM(G20:G35) -> 15.00
C37: = | E37: = | F37: = | G37: =
B38: 145 | C38: 0.00 | G38: =C38-F38 -> 0.00
B39: 243 | C39: -1.00 | G39: =C39-F39 -> -1.00
C40: 0.00 | G40: =C40-F40 -> 0.00
C41: - | G41: -
C42: =SUM(C36:C40) -> 14.00 | G42: =SUM(G36:G40) -> 14.00 | H42: I.2
C43: = | G43: =
A46: Amount as per client listing | B46: =G42 -> 14.00 | C46: I.2
A47: Amount as per Trial balance
A48: Difference | B48: =B46-B47 -> 14.00
A50: Conclusion:
A52: The listing agrees to the lead schedule.

Sheet I.11-Thabong
G1: I.11
A2: Client: | B2: FDC
A3: Year End: | B3: ='I.3 Grasslands'!B3 -> 
A4: Description: | B4: Inventory
A6: Objective:
A8: The objective of this working paper is to agree the lead with the inventory listing.
A10: Method:
A12: Agree the total per the inventory listing to the total per the lead schedule.
A14: Work Performed:
A18: THABONG | B18: Stock | C18: Written Off | D18: Loan Nr. | E18: Selling Price | F18: Cost of Sales | G18: Stock
A19: ERF NR. | B19: 2019-03-31 | G19: 2020-03-31
A20: 2055 | B20: 1 | G20: 1
A21: 2059 | B21: 1 | G21: 1
A22: 2452 | B22: 1 | G22: 1
A23: 2558 | B23: 1 | G23: 1
A24: 2654 | B24: 1 | G24: 1
B26: 5 | C26: 0 | E26: 0 | F26: 0 | G26: 5
A29: Amount as per client listing | B29: =B26 -> 5.00 | C29: I.2
A30: Amount as per Trial balance
A31: Difference | B31: =B29-B30 -> 5.00
A33: Conclusion:
A35: The listing agrees to the lead schedule.

Sheet I.12-Thibela
D1: I.12
A2: Client: | B2: FDC
A3: Year End: | B3: ='I.3 Grasslands'!B3 -> 
A4: Description: | B4: Inventory
A6: Objective:
A8: The objective of this working paper is to agree the lead with the inventory listing.
A10: Method:
A12: Agree the total per the inventory listing to the total per the lead schedule.
A14: Work Performed:
A16: THIBELLA 1-10-93/31-3-94 | B16: Development | C16: Stock | D16: Stock
C17: 2019-03-31 | D17: 2020-03-31
A18: Church | B18: 57 | C18: 0.9952736318 | D18: 0.9952736318
B19: 100 | C19: 0.9952736318 | D19: 0.9952736318
B20: 112 | C20: 0.9952736318 | D20: 0.9952736318
B21: 113 | C21: 0.9952736318 | D21: 0.9952736318
B22: 114 | C22: 0.9952736318 | D22: 0.9952736318
B23: 115 | C23: 0.9952736318 | D23: 0.9952736318
B24: 116 | C24: 0.9952736318 | D24: 0.9952736318
B25: 117 | C25: 0.9952736318 | D25: 0.9952736318
B26: 118 | C26: 0.9952736318 | D26: 0.9952736318
B27: 119 | C27: 0.9952736318 | D27: 0.9952736318
B28: 120 | C28: 0.9952736318 | D28: 0.9952736318
B29: 121 | C29: 0.9952736318 | D29: 0.9952736318
B30: 125 | C30: 0.9952736318 | D30: 0.9952736318
B31: 126 | C31: 0.9952736318 | D31: 0.9952736318
B32: 127 | C32: 0.9952736318 | D32: 0.9952736318
B33: 128 | C33: 0.9952736318 | D33: 0.9952736318
B34: 129 | C34: 0.9952736318 | D34: 0.9952736318
B35: 130 | C35: 0.9952736318 | D35: 0.9952736318
B36: 131 | C36: 0.9952736318 | D36: 0.9952736318
B37: 132 | C37: 0.9952736318 | D37: 0.9952736318
B38: 133 | C38: 0.9952736318 | D38: 0.9952736318
B39: 134 | C39: 0.9952736318 | D39: 0.9952736318
B40: 135 | C40: 0.9952736318 | D40: 0.9952736318
B41: 136 | C41: 0.9952736318 | D41: 0.9952736318
B42: 137 | C42: 0.9952736318 | D42: 0.9952736318
B43: 138 | C43: 0.9952736318 | D43: 0.9952736318
B44: 139 | C44: 0.9952736318 | D44: 0.9952736318
B45: 140 | C45: 0.9952736318 | D45: 0.9952736318
B46: 141 | C46: 0.9952736318 | D46: 0.9952736318
B47: 142 | C47: 0.9952736318 | D47: 0.9952736318
B48: 143 | C48: 0.9952736318 | D48: 0.9952736318
B49: 144 | C49: 0.9952736318 | D49: 0.9952736318
B50: 146 | C50: 0.9952736318 | D50: 0.9952736318
B51: 147 | C51: 0.9952736318 | D51: 0.9952736318
B52: 148 | C52: 0.9952736318 | D52: 0.9952736318
B53: 149 | C53: 0.9952736318 | D53: 0.9952736318
B54: 150 | C54: 0.9952736318 | D54: 0.9952736318
B55: 151 | C55: 0.9952736318 | D55: 0.9952736318
B56: 152 | C56: 0.9952736318 | D56: 0.9952736318
B57: 153 | C57: 0.9952736318 | D57: 0.9952736318
B58: 154 | C58: 0.9952736318 | D58: 0.9952736318
B59: 155 | C59: 0.9952736318 | D59: 0.9952736318
B60: 156 | C60: 0.9952736318 | D60: 0.9952736318
B61: 157 | C61: 0.9952736318 | D61: 0.9952736318
B62: 158 | C62: 0.9952736318 | D62: 0.9952736318
B63: 159 | C63: 0.9952736318 | D63: 0.9952736318
B64: 160 | C64: 0.9952736318 | D64: 0.9952736318
B65: 164 | C65: 0.9952736318 | D65: 0.9952736318
B66: 165 | C66: 0.9952736318 | D66: 0.9952736318
B67: 166 | C67: 0.9952736318 | D67: 0.9952736318
B68: 167 | C68: 0.9952736318 | D68: 0.9952736318
B69: 185 | C69: 0.9952736318 | D69: 0.9952736318
B70: 194 | C70: 0.9952736318 | D70: 0.9952736318
B71: 195 | C71: 0.9952736318 | D71: 0.9952736318
B72: 196 | C72: 0.9952736318 | D72: 0.9952736318
B73: 197 | C73: 0.9952736318 | D73: 0.9952736318
B74: 198 | C74: 0.9952736318 | D74: 0.9952736318
B75: 199 | C75: 0.9952736318 | D75: 0.9952736318
B76: 200 | C76: 0.9952736318 | D76: 0.9952736318
B77: 201 | C77: 0.9952736318 | D77: 0.9952736318
B78: 202 | C78: 0.9952736318 | D78: 0.9952736318
B79: 203 | C79: 0.9952736318 | D79: 0.9952736318
B80: 204 | C80: 0.9952736318 | D80: 0.9952736318
B81: 205 | C81: 0.9952736318 | D81: 0.9952736318
B82: 206 | C82: 0.9952736318 | D82: 0.9952736318
B83: 209 | C83: 0.9952736318 | D83: 0.9952736318
B84: 210 | C84: 0.9952736318 | D84: 0.9952736318
B85: 211 | C85: 0.9952736318 | D85: 0.9952736318
B86: 212 | C86: 0.9952736318 | D86: 0.9952736318
B87: 213 | C87: 0.9952736318 | D87: 0.9952736318
B88: 214 | C88: 0.9952736318 | D88: 0.9952736318
B89: 215 | C89: 0.9952736318 | D89: 0.9952736318
B90: 216 | C90: 0.9952736318 | D90: 0.9952736318
B91: 218 | C91: 0.9952736318 | D91: 0.9952736318
B92: 219 | C92: 0.9952736318 | D92: 0.9952736318
B93: 220 | C93: 0.9952736318 | D93: 0.9952736318
B94: 221 | C94: 0.9952736318 | D94: 0.9952736318
B95: 222 | C95: 0.9952736318 | D95: 0.9952736318
B96: 223 | C96: 0.9952736318 | D96: 0.9952736318
B97: 224 | C97: 0.9952736318 | D97: 0.9952736318
B98: 225 | C98: 0.9952736318 | D98: 0.9952736318
B99: 226 | C99: 0.9952736318 | D99: 0.9952736318
B100: 235 | C100: 0.9952736318 | D100: 0.9952736318
B101: 236 | C101: 0.9952736318 | D101: 0.9952736318
B102: 237 | C102: 0.9952736318 | D102: 0.9952736318
B103: 238 | C103: 0.9952736318 | D103: 0.9952736318
B104: 239 | C104: 0.9952736318 | D104: 0.9952736318
B105: 240 | C105: 0.9952736318 | D105: 0.9952736318
B106: 241 | C106: 0.9952736318 | D106: 0.9952736318 | E106: Transferred
B107: 242 | C107: 0.9952736318 | D107: 0.9952736318
B108: 243 | C108: 0.9952736318 | D108: 0.9952736318
B109: 244 | C109: 0.9952736318 | D109: 0.9952736318
B110: 245 | C110: 0.9952736318 | D110: 0.9952736318
B111: 246 | C111: 0.9952736318 | D111: 0.9952736318
B112: 247 | C112: 0.9952736318 | D112: 0.9952736318
B113: 248 | C113: 0.9952736318 | D113: 0.9952736318
B114: 249 | C114: 0.9952736318 | D114: 0.9952736318
B115: 250 | C115: 0.9952736318 | D115: 0.9952736318
B116: 251 | C116: 0.9952736318 | D116: 0.9952736318
B117: 252 | C117: 0.9952736318 | D117: 0.9952736318
B118: 253 | C118: 0.9952736318 | D118: 0.9952736318
B119: 254 | C119: 0.9952736318 | D119: 0.9952736318
B120: 255 | C120: 0.9952736318 | D120: 0.9952736318
B121: 256 | C121: 0.9952736318 | D121: 0.9952736318
B122: 257 | C122: 0.9952736318 | D122: 0.9952736318
B123: 258 | C123: 0.9952736318 | D123: 0.9952736318
B124: 259 | C124: 0.9952736318 | D124: 0.9952736318
B125: 260 | C125: 0.9952736318 | D125: 0.9952736318
B126: 261 | C126: 0.9952736318 | D126: 0.9952736318
B127: 262 | C127: 0.9952736318 | D127: 0.9952736318
B128: 263 | C128: 0.9952736318 | D128: 0.9952736318
B129: 264 | C129: 0.9952736318 | D129: 0.9952736318
B130: 265 | C130: 0.9952736318 | D130: 0.9952736318
B131: 266 | C131: 0.9952736318 | D131: 0.9952736318
B132: 267 | C132: 0.9952736318 | D132: 0.9952736318
B133: 268 | C133: 0.9952736318 | D133: 0.9952736318
B134: 269 | C134: 0.9952736318 | D134: 0.9952736318
B135: 270 | C135: 0.9952736318 | D135: 0.9952736318
B136: 271 | C136: 0.9952736318 | D136: 0.9952736318
B137: 272 | C137: 0.9952736318 | D137: 0.9952736318
B138: 273 | C138: 0.9952736318 | D138: 0.9952736318
B139: 274 | C139: 0.9952736318 | D139: 0.9952736318
B140: 275 | C140: 0.9952736318 | D140: 0.9952736318
B141: 276 | C141: 0.9952736318 | D141: 0.9952736318
B142: 277 | C142: 0.9952736318 | D142: 0.9952736318
B143: 278 | C143: 0.9952736318 | D143: 0.9952736318
B144: 279 | C144: 0.9952736318 | D144: 0.9952736318
B145: 280 | C145: 0.9952736318 | D145: 0.9952736318
B146: 281 | C146: 0.9952736318 | D146: 0.9952736318
B147: 282 | C147: 0.9952736318 | D147: 0.9952736318
B148: 283 | C148: 0.9952736318 | D148: 0.9952736318
B149: 284 | C149: 0.9952736318 | D149: 0.9952736318
B150: 285 | C150: 0.9952736318 | D150: 0.9952736318
B151: 286 | C151: 0.9952736318 | D151: 0.9952736318
B152: 287 | C152: 0.9952736318 | D152: 0.9952736318
B153: 288 | C153: 0.9952736318 | D153: 0.9952736318
B154: 289 | C154: 0.9952736318 | D154: 0.9952736318
B155: 290 | C155: 0.9952736318 | D155: 0.9952736318
B156: 291 | C156: 0.9952736318 | D156: 0.9952736318
B157: 292 | C157: 0.9952736318 | D157: 0.9952736318
B158: 293 | C158: 0.9952736318 | D158: 0.9952736318
B159: 294 | C159: 0.9952736318 | D159: 0.9952736318
B160: 295 | C160: 0.9952736318 | D160: 0.9952736318
B161: 296 | C161: 0.9952736318 | D161: 0.9952736318
B162: 297 | C162: 0.9952736318 | D162: 0.9952736318
B163: 298 | C163: 0.9952736318 | D163: 0.9952736318
B164: 299 | C164: 0.9952736318 | D164: 0.9952736318
B165: 300 | C165: 0.9952736318 | D165: 0.9952736318
B166: 301 | C166: 0.9952736318 | D166: 0.9952736318
B167: 302 | C167: 0.9952736318 | D167: 0.9952736318
B168: 303 | C168: 0.9952736318 | D168: 0.9952736318
B169: 304 | C169: 0.9952736318 | D169: 0.9952736318
B170: 305 | C170: 0.9952736318 | D170: 0.9952736318
B171: 306 | C171: 0.9952736318 | D171: 0.9952736318
B172: 307 | C172: 0.9952736318 | D172: 0.9952736318
B173: 308 | C173: 0.9952736318 | D173: 0.9952736318
B174: 309 | C174: 0.9952736318 | D174: 0.9952736318
B175: 310 | C175: 0.9952736318 | D175: 0.9952736318
B176: 311 | C176: 0.9952736318 | D176: 0.9952736318
B177: 312 | C177: 0.9952736318 | D177: 0.9952736318
B178: 313 | C178: 0.9952736318 | D178: 0.9952736318
B179: 314 | C179: 0.9952736318 | D179: 0.9952736318
B180: 315 | C180: 0.9952736318 | D180: 0.9952736318
B181: 316 | C181: 0.9952736318 | D181: 0.9952736318
B182: 317 | C182: 0.9952736318 | D182: 0.9952736318
B183: 318 | C183: 0.9952736318 | D183: 0.9952736318
B184: 319 | C184: 0.9952736318 | D184: 0.9952736318
B185: 320 | C185: 0.9952736318 | D185: 0.9952736318
B186: 321 | C186: 0.9952736318 | D186: 0.9952736318
B187: 322 | C187: 0.9952736318 | D187: 0.9952736318
B188: 323 | C188: 0.9952736318 | D188: 0.9952736318
B189: 324 | C189: 0.9952736318 | D189: 0.9952736318
B190: 325 | C190: 0.9952736318 | D190: 0.9952736318
B191: 326 | C191: 0.9952736318 | D191: 0.9952736318
B192: 327 | C192: 0.9952736318 | D192: 0.9952736318
B193: 328 | C193: 0.9952736318 | D193: 0.9952736318
B194: 329 | C194: 0.9952736318 | D194: 0.9952736318
B195: 330 | C195: 0.9952736318 | D195: 0.9952736318
B196: 331 | C196: 0.9952736318 | D196: 0.9952736318
B197: 332 | C197: 0.9952736318 | D197: 0.9952736318
B198: 333 | C198: 0.9952736318 | D198: 0.9952736318
B199: 334 | C199: 0.9952736318 | D199: 0.9952736318
B200: 335 | C200: 0.9952736318 | D200: 0.9952736318
B201: 336 | C201: 0.9952736318 | D201: 0.9952736318
B202: 337 | C202: 0.9952736318 | D202: 0.9952736318
B203: 338 | C203: 0.9952736318 | D203: 0.9952736318
B204: 339 | C204: 0.9952736318 | D204: 0.9952736318
B205: 340 | C205: 0.9952736318 | D205: 0.9952736318
B206: 341 | C206: 0.9952736318 | D206: 0.9952736318
... 19 more rows

Sheet I.13-Final listing
D1: I.13
A2: Client: | C2: FDC
A3: Year End: | C3: ='I.3 Grasslands'!B3 -> 
A5: Description: | C5: Inventory
A7: Objective:
A9: The objective of this working paper is to ensure that the properties stock fair value adjustment account reconciles to the general ledger.
A11: Method:
A13: Obtain the account listing and reconcile it to the general ledger.
A15: Background:
A17: According to IAS 2 par 9: Inventories shall be measured at the lower of cost and net realisable value.
A18: The schedule below compares the cost price of inventory to the Net realisable value (Fair value).
A20: 2019/20
A21: PC | C21: ERF | D21: Cost
A22: 1432 | D22: A1
A23: Phuthaditjhaba-N 3 | B23: PHUTHADITJHABA-N3 | C23: Phuthaditjhaba-N 3 (Re-Allocation PC 1432 Stock) | D23: 11,307.80
A24: Phuthaditjhaba-N 4 | B24: PHUTHADITJHABA-N4 | C24: Phuthaditjhaba-N 4 (Re-Allocation PC 1432 Stock) | D24: 11,143.92
A25: Phuthaditjhaba-N 5 | B25: PHUTHADITJHABA-N5 | C25: Phuthaditjhaba-N 5 (Re-Allocation PC 1432 Stock) | D25: 10,980.04
A26: Phuthaditjhaba-N 10 | B26: PHUTHADITJHABA-N10 | C26: Phuthaditjhaba-N 10 (Re-Allocation PC 1432 Stock) | D26: 10,160.63
A27: Phuthaditjhaba-N 13 | B27: PHUTHADITJHABA-N13 | C27: Phuthaditjhaba-N 13 (Re-Allocation PC 1432 Stock) | D27: 9,817.97
A28: Phuthaditjhaba-N 15 | B28: PHUTHADITJHABA-N15 | C28: Phuthaditjhaba-N 15 (Re-Allocation PC 1432 Stock) | D28: 13,333.97
A29: Phuthaditjhaba-L 32 | B29: PHUTHADITJHABA-L32 | C29: Phuthaditjhaba-L 32 (Re-Allocation PC 1432 Stock) | D29: 3,396.81
A30: Phuthaditjhaba-J 41 | B30: PHUTHADITJHABA-J41 | C30: Phuthaditjhaba-J 41 (Re-Allocation PC 1432 Stock) | D30: 5,688.47
A31: Phuthaditjhaba-L 43 | B31: PHUTHADITJHABA-L43 | C31: Phuthaditjhaba-L 43 (Re-Allocation PC 1432 Stock) | D31: 923.53
A32: Phuthaditjhaba-J 43 | B32: PHUTHADITJHABA-J43 | C32: Phuthaditjhaba-J 43 (Re-Allocation PC 1432 Stock) | D32: 7,082.34
A33: Phuthaditjhaba-J 48 | B33: PHUTHADITJHABA-J48 | C33: Phuthaditjhaba-J 48 (Re-Allocation PC 1432 Stock) | D33: 6,485.87
A34: Phuthaditjhaba-J 54 | B34: PHUTHADITJHABA-J54 | C34: Phuthaditjhaba-J 54 (Re-Allocation PC 1432 Stock) | D34: 6,862.58
A35: Phuthaditjhaba-L 58 | B35: PHUTHADITJHABA-L58 | C35: Phuthaditjhaba-L 58 (Re-Allocation PC 1432 Stock) | D35: 3,859.02
A36: Phuthaditjhaba-J 68 | B36: PHUTHADITJHABA-J68 | C36: Phuthaditjhaba-J 68 (Re-Allocation PC 1432 Stock) | D36: 5,977.27
A37: Phuthaditjhaba-J 69 | B37: PHUTHADITJHABA-J69 | C37: Phuthaditjhaba-J 69 (Re-Allocation PC 1432 Stock) | D37: 7,678.81
A38: Phuthaditjhaba-J 71 | B38: PHUTHADITJHABA-J71 | C38: Phuthaditjhaba-J 71 (Re-Allocation PC 1432 Stock) | D38: 9,424.28
A39: Phuthaditjhaba-J 72 | B39: PHUTHADITJHABA-J72 | C39: Phuthaditjhaba-J 72 (Re-Allocation PC 1432 Stock) | D39: 6,435.64
A40: Phuthaditjhaba-J 73 | B40: PHUTHADITJHABA-J73 | C40: Phuthaditjhaba-J 73 (Re-Allocation PC 1432 Stock) | D40: 5,280.36
A41: Phuthaditjhaba-J 74 | B41: PHUTHADITJHABA-J74 | C41: Phuthaditjhaba-J 74 (Re-Allocation PC 1432 Stock) | D41: 5,274.08
A42: Phuthaditjhaba-J 75 | B42: PHUTHADITJHABA-J75 | C42: Phuthaditjhaba-J 75 (Re-Allocation PC 1432 Stock) | D42: 5,274.08
A43: Phuthaditjhaba-J 77 | B43: PHUTHADITJHABA-J77 | C43: Phuthaditjhaba-J 77 (Re-Allocation PC 1432 Stock) | D43: 5,274.08
A44: Phuthaditjhaba-L 87 | B44: PHUTHADITJHABA-L87 | C44: Phuthaditjhaba-L 87 (Re-Allocation PC 1432 Stock) | D44: 2,860.47
A45: Phuthaditjhaba-L 89 | B45: PHUTHADITJHABA-L89 | C45: Phuthaditjhaba-L 89 (Re-Allocation PC 1432 Stock) | D45: 2,681.69
A46: Phuthaditjhaba-L 90 | B46: PHUTHADITJHABA-L90 | C46: Phuthaditjhaba-L 90 (Re-Allocation PC 1432 Stock) | D46: 2,681.69
A47: Phuthaditjhaba-L 94 | B47: PHUTHADITJHABA-L94 | C47: Phuthaditjhaba-L 94 (Re-Allocation PC 1432 Stock) | D47: 2,681.69
A48: Phuthaditjhaba-L 98 | B48: PHUTHADITJHABA-L98 | C48: Phuthaditjhaba-L 98 (Re-Allocation PC 1432 Stock) | D48: 2,771.08
A49: Phuthaditjhaba-L 99 | B49: PHUTHADITJHABA-L99 | C49: Phuthaditjhaba-L 99 (Re-Allocation PC 1432 Stock) | D49: 2,860.47
A50: Phuthaditjhaba-L 104 | B50: PHUTHADITJHABA-L104 | C50: Phuthaditjhaba-L 104 (Re-Allocation PC 1432 Stock) | D50: 2,681.69
A51: Phuthaditjhaba-L 105 | B51: PHUTHADITJHABA-L105 | C51: Phuthaditjhaba-L 105 (Re-Allocation PC 1432 Stock) | D51: 2,681.69
A52: Phuthaditjhaba-L 106 | B52: PHUTHADITJHABA-L106 | C52: Phuthaditjhaba-L 106 (Re-Allocation PC 1432 Stock) | D52: 2,681.69
A53: Phuthaditjhaba-L 107 | B53: PHUTHADITJHABA-L107 | C53: Phuthaditjhaba-L 107 (Re-Allocation PC 1432 Stock) | D53: 2,681.69
A54: Phuthaditjhaba-L 108 | B54: PHUTHADITJHABA-L108 | C54: Phuthaditjhaba-L 108 (Re-Allocation PC 1432 Stock) | D54: 2,681.69
A55: Phuthaditjhaba-L 109 | B55: PHUTHADITJHABA-L109 | C55: Phuthaditjhaba-L 109 (Re-Allocation PC 1432 Stock) | D55: 2,681.69
A56: Phuthaditjhaba-L 110 | B56: PHUTHADITJHABA-L110 | C56: Phuthaditjhaba-L 110 (Re-Allocation PC 1432 Stock) | D56: 2,681.69
A57: Phuthaditjhaba-L 111 | B57: PHUTHADITJHABA-L111 | C57: Phuthaditjhaba-L 111 (Re-Allocation PC 1432 Stock) | D57: 2,681.69
A58: Phuthaditjhaba-L 115 | B58: PHUTHADITJHABA-L115 | C58: Phuthaditjhaba-L 115 (Re-Allocation PC 1432 Stock) | D58: 3,307.42
A59: Phuthaditjhaba-L 118 | B59: PHUTHADITJHABA-L118 | C59: Phuthaditjhaba-L 118 (Re-Allocation PC 1432 Stock) | D59: 3,069.05
A60: Phuthaditjhaba-L 120 | B60: PHUTHADITJHABA-L120 | C60: Phuthaditjhaba-L 120 (Re-Allocation PC 1432 Stock) | D60: 2,681.69
A61: Phuthaditjhaba-K 120 | B61: PHUTHADITJHABA-K120 | C61: Phuthaditjhaba-K 120 (Re-Allocation PC 1432 Stock) | D61: 1.00
A62: Phuthaditjhaba-J 120 | B62: PHUTHADITJHABA-J120 | C62: Phuthaditjhaba-J 120 (Re-Allocation PC 1432 Stock) | D62: 10,636.07
A63: Phuthaditjhaba-L 123 | B63: PHUTHADITJHABA-L123 | C63: Phuthaditjhaba-L 123 (Re-Allocation PC 1432 Stock) | D63: 2,681.69
A64: Phuthaditjhaba-L 124 | B64: PHUTHADITJHABA-L124 | C64: Phuthaditjhaba-L 124 (Re-Allocation PC 1432 Stock) | D64: 2,681.69
A65: Phuthaditjhaba-J 124 | B65: PHUTHADITJHABA-J124 | C65: Phuthaditjhaba-J 124 (Re-Allocation PC 1432 Stock) | D65: 2,169.37
A66: Phuthaditjhaba-K 338/125 | B66: PHUTHADITJHABA-K338/125 | C66: Phuthaditjhaba-K 338/125 (Re-Allocation PC 1432 Stock) | D66: 14,881.67
A67: Phuthaditjhaba-K 339/126 | B67: PHUTHADITJHABA-K339/126 | C67: Phuthaditjhaba-K 339/126 (Re-Allocation PC 1432 Stock) | D67: 14,766.31
A68: Phuthaditjhaba-K 340/127 | B68: PHUTHADITJHABA-K340/127 | C68: Phuthaditjhaba-K 340/127 (Re-Allocation PC 1432 Stock) | D68: 14,489.44
A69: Phuthaditjhaba-L 128 | B69: PHUTHADITJHABA-L128 | C69: Phuthaditjhaba-L 128 (Re-Allocation PC 1432 Stock) | D69: 2,681.69
A70: Phuthaditjhaba-K 341/128 | B70: PHUTHADITJHABA-K341/128 | C70: Phuthaditjhaba-K 341/128 (Re-Allocation PC 1432 Stock) | D70: 57,796.27
A71: Phuthaditjhaba-L 130 | B71: PHUTHADITJHABA-L130 | C71: Phuthaditjhaba-L 130 (Re-Allocation PC 1432 Stock) | D71: 3,467.09
A72: Phuthaditjhaba-J 130 | B72: PHUTHADITJHABA-J130 | C72: Phuthaditjhaba-J 130 (Re-Allocation PC 1432 Stock) | D72: 7,050.95
A73: Phuthaditjhaba-L 133 | B73: PHUTHADITJHABA-L133 | C73: Phuthaditjhaba-L 133 (Re-Allocation PC 1432 Stock) | D73: 3,098.84
A74: Tshiame-B 133 | B74: TSHIAME-B133 | C74: Tshiame-B 133 (Re-Allocation PC 1432 Stock) | D74: 1.00
A75: Phuthaditjhaba-L 135 | B75: PHUTHADITJHABA-L135 | C75: Phuthaditjhaba-L 135 (Re-Allocation PC 1432 Stock) | D75: 2,681.69
A76: Phuthaditjhaba-L 140 | B76: PHUTHADITJHABA-L140 | C76: Phuthaditjhaba-L 140 (Re-Allocation PC 1432 Stock) | D76: 2,681.69
A77: Phuthaditjhaba-L 144 | B77: PHUTHADITJHABA-L144 | C77: Phuthaditjhaba-L 144 (Re-Allocation PC 1432 Stock) | D77: 2,681.69
A78: Phuthaditjhaba-L 146 | B78: PHUTHADITJHABA-L146 | C78: Phuthaditjhaba-L 146 (Re-Allocation PC 1432 Stock) | D78: 2,713.37
A79: Phuthaditjhaba-L 147 | B79: PHUTHADITJHABA-L147 | C79: Phuthaditjhaba-L 147 (Re-Allocation PC 1432 Stock) | D79: 2,681.69
A80: Phuthaditjhaba-L 150 | B80: PHUTHADITJHABA-L150 | C80: Phuthaditjhaba-L 150 (Re-Allocation PC 1432 Stock) | D80: 2,681.69
A81: Phuthaditjhaba-L 151 | B81: PHUTHADITJHABA-L151 | C81: Phuthaditjhaba-L 151 (Re-Allocation PC 1432 Stock) | D81: 2,681.69
A82: Phuthaditjhaba-L 152 | B82: PHUTHADITJHABA-L152 | C82: Phuthaditjhaba-L 152 (Re-Allocation PC 1432 Stock) | D82: 2,681.69
A83: Phuthaditjhaba-L 153 | B83: PHUTHADITJHABA-L153 | C83: Phuthaditjhaba-L 153 (Re-Allocation PC 1432 Stock) | D83: 2,681.69
A84: Phuthaditjhaba-L 154 | B84: PHUTHADITJHABA-L154 | C84: Phuthaditjhaba-L 154 (Re-Allocation PC 1432 Stock) | D84: 2,681.69
A85: Phuthaditjhaba-L 155 | B85: PHUTHADITJHABA-L155 | C85: Phuthaditjhaba-L 155 (Re-Allocation PC 1432 Stock) | D85: 2,681.69
A86: Phuthaditjhaba-L 156 | B86: PHUTHADITJHABA-L156 | C86: Phuthaditjhaba-L 156 (Re-Allocation PC 1432 Stock) | D86: 2,681.69
A87: Phuthaditjhaba-L 158 | B87: PHUTHADITJHABA-L158 | C87: Phuthaditjhaba-L 158 (Re-Allocation PC 1432 Stock) | D87: 3,501.09
A88: Phuthaditjhaba-L 159 | B88: PHUTHADITJHABA-L159 | C88: Phuthaditjhaba-L 159 (Re-Allocation PC 1432 Stock) | D88: 2,713.37
A89: Phuthaditjhaba-L 160 | B89: PHUTHADITJHABA-L160 | C89: Phuthaditjhaba-L 160 (Re-Allocation PC 1432 Stock) | D89: 2,681.69
A90: Phuthaditjhaba-L 161 | B90: PHUTHADITJHABA-L161 | C90: Phuthaditjhaba-L 161 (Re-Allocation PC 1432 Stock) | D90: 2,696.59
A91: Phuthaditjhaba-L 162 | B91: PHUTHADITJHABA-L162 | C91: Phuthaditjhaba-L 162 (Re-Allocation PC 1432 Stock) | D91: 3,098.84
A92: Phuthaditjhaba-L 165 | B92: PHUTHADITJHABA-L165 | C92: Phuthaditjhaba-L 165 (Re-Allocation PC 1432 Stock) | D92: 2,681.69
A93: Phuthaditjhaba-L 166 | B93: PHUTHADITJHABA-L166 | C93: Phuthaditjhaba-L 166 (Re-Allocation PC 1432 Stock) | D93: 2,920.06
A94: Phuthaditjhaba-L 169 | B94: PHUTHADITJHABA-L169 | C94: Phuthaditjhaba-L 169 (Re-Allocation PC 1432 Stock) | D94: 2,713.37
A95: Phuthaditjhaba-L 173 | B95: PHUTHADITJHABA-L173 | C95: Phuthaditjhaba-L 173 (Re-Allocation PC 1432 Stock) | D95: 2,681.69
A96: Phuthaditjhaba-K 174 | B96: PHUTHADITJHABA-K174 | C96: Phuthaditjhaba-K 174 (Re-Allocation PC 1432 Stock) | D96: 13,949.02
A97: Phuthaditjhaba-L 179 | B97: PHUTHADITJHABA-L179 | C97: Phuthaditjhaba-L 179 (Re-Allocation PC 1432 Stock) | D97: 3,143.54
A98: Phuthaditjhaba-L 181 | B98: PHUTHADITJHABA-L181 | C98: Phuthaditjhaba-L 181 (Re-Allocation PC 1432 Stock) | D98: 2,681.69
A99: Phuthaditjhaba-L 182 | B99: PHUTHADITJHABA-L182 | C99: Phuthaditjhaba-L 182 (Re-Allocation PC 1432 Stock) | D99: 2,681.69
A100: Phuthaditjhaba-L 184 | B100: PHUTHADITJHABA-L184 | C100: Phuthaditjhaba-L 184 (Re-Allocation PC 1432 Stock) | D100: 2,681.69
A101: Phuthaditjhaba-L 185 | B101: PHUTHADITJHABA-L185 | C101: Phuthaditjhaba-L 185 (Re-Allocation PC 1432 Stock) | D101: 2,681.69
A102: Phuthaditjhaba-L 186 | B102: PHUTHADITJHABA-L186 | C102: Phuthaditjhaba-L 186 (Re-Allocation PC 1432 Stock) | D102: 2,681.69
A103: Phuthaditjhaba-L 187 | B103: PHUTHADITJHABA-L187 | C103: Phuthaditjhaba-L 187 (Re-Allocation PC 1432 Stock) | D103: 2,681.69
A104: Phuthaditjhaba-L 188 | B104: PHUTHADITJHABA-L188 | C104: Phuthaditjhaba-L 188 (Re-Allocation PC 1432 Stock) | D104: 2,994.56
A105: Phuthaditjhaba-L 189 | B105: PHUTHADITJHABA-L189 | C105: Phuthaditjhaba-L 189 (Re-Allocation PC 1432 Stock) | D105: 2,994.56
A106: Phuthaditjhaba-L 190 | B106: PHUTHADITJHABA-L190 | C106: Phuthaditjhaba-L 190 (Re-Allocation PC 1432 Stock) | D106: 2,713.37
A107: Phuthaditjhaba-L 191 | B107: PHUTHADITJHABA-L191 | C107: Phuthaditjhaba-L 191 (Re-Allocation PC 1432 Stock) | D107: 2,681.69
A108: Phuthaditjhaba-L 203 | B108: PHUTHADITJHABA-L203 | C108: Phuthaditjhaba-L 203 (Re-Allocation PC 1432 Stock) | D108: 42,841.32
A109: Phuthaditjhaba-L 206 | B109: PHUTHADITJHABA-L206 | C109: Phuthaditjhaba-L 206 (Re-Allocation PC 1432 Stock) | D109: 27,215.29
A110: Phuthaditjhaba-L 208 | B110: PHUTHADITJHABA-L208 | C110: Phuthaditjhaba-L 208 (Re-Allocation PC 1432 Stock) | D110: 24,000.00
A111: Phuthaditjhaba-J 221 | B111: PHUTHADITJHABA-J221 | C111: Phuthaditjhaba-J 221 (Re-Allocation PC 1432 Stock) | D111: 22,791.59
A112: Phuthaditjhaba-L 223 | B112: PHUTHADITJHABA-L223 | C112: Phuthaditjhaba-L 223 (Re-Allocation PC 1432 Stock) | D112: 9,606.49
A113: Phuthaditjhaba-J 224 | B113: PHUTHADITJHABA-J224 | C113: Phuthaditjhaba-J 224 (Re-Allocation PC 1432 Stock) | D113: 7,597.19
A114: Tshiame-B 224 | B114: TSHIAME-B224 | C114: Tshiame-B 224 (Re-Allocation PC 1432 Stock) | D114: 1.00
A115: Phuthaditjhaba-L 226 | B115: PHUTHADITJHABA-L226 | C115: Phuthaditjhaba-L 226 (Re-Allocation PC 1432 Stock) | D115: 5,199.50
A116: Phuthaditjhaba-J 227 | B116: PHUTHADITJHABA-J227 | C116: Phuthaditjhaba-J 227 (Re-Allocation PC 1432 Stock) | D116: 6,642.83
A117: Phuthaditjhaba-J 229 | B117: PHUTHADITJHABA-J229 | C117: Phuthaditjhaba-J 229 (Re-Allocation PC 1432 Stock) | D117: 6,812.36
A118: Phuthaditjhaba-J 232 | B118: PHUTHADITJHABA-J232 | C118: Phuthaditjhaba-J 232 (Re-Allocation PC 1432 Stock) | D118: 7,973.91
A119: Tshiame-B 232 | B119: TSHIAME-B232 | C119: Tshiame-B 232 (Re-Allocation PC 1432 Stock) | D119: 1.00
A120: Phuthaditjhaba-J 233 | B120: PHUTHADITJHABA-J233 | C120: Phuthaditjhaba-J 233 (Re-Allocation PC 1432 Stock) | D120: 9,449.40
A121: Tshiame-B 233 | B121: TSHIAME-B233 | C121: Tshiame-B 233 (Re-Allocation PC 1432 Stock) | D121: 1.00
A122: Phuthaditjhaba-J 234 | B122: PHUTHADITJHABA-J234 | C122: Phuthaditjhaba-J 234 (Re-Allocation PC 1432 Stock) | D122: 8,620.61
A123: Phuthaditjhaba-J 237 | B123: PHUTHADITJHABA-J237 | C123: Phuthaditjhaba-J 237 (Re-Allocation PC 1432 Stock) | D123: 4,809.46
A124: Phuthaditjhaba-J 240 | B124: PHUTHADITJHABA-J240 | C124: Phuthaditjhaba-J 240 (Re-Allocation PC 1432 Stock) | D124: 8,595.50
A125: Tshiame-B 240 | B125: TSHIAME-B240 | C125: Tshiame-B 240 (Re-Allocation PC 1432 Stock) | D125: 1.00
A126: Tshiame-A 242 | B126: TSHIAME-A242 | C126: Tshiame-A 242 (Re-Allocation PC 1432 Stock) | D126: 4,192.31
A127: Phuthaditjhaba-J 243 | B127: PHUTHADITJHABA-J243 | C127: Phuthaditjhaba-J 243 (Re-Allocation PC 1432 Stock) | D127: 8,972.22
A128: Tshiame-B 244 | B128: TSHIAME-B244 | C128: Tshiame-B 244 (Re-Allocation PC 1432 Stock) | D128: 1.00
A129: Tshiame-A 263 | B129: TSHIAME-A263 | C129: Tshiame-A 263 (Re-Allocation PC 1432 Stock) | D129: 636.59
A130: Phuthaditjhaba-K 269 | B130: PHUTHADITJHABA-K269 | C130: Phuthaditjhaba-K 269 (Re-Allocation PC 1432 Stock) | D130: 126.90
A131: Tshiame-B 279 | B131: TSHIAME-B279 | C131: Tshiame-B 279 (Re-Allocation PC 1432 Stock) | D131: 1.00
A132: Phuthaditjhaba-K 284 | B132: PHUTHADITJHABA-K284 | C132: Phuthaditjhaba-K 284 (Re-Allocation PC 1432 Stock) | D132: 17,634.19
A133: Phuthaditjhaba-J 292 | B133: PHUTHADITJHABA-J292 | C133: Phuthaditjhaba-J 292 (Re-Allocation PC 1432 Stock) | D133: 10,000.00
A134: Phuthaditjhaba-L 296 | B134: PHUTHADITJHABA-L296 | C134: Phuthaditjhaba-L 296 (Re-Allocation PC 1432 Stock) | D134: 17,103.24
A135: Phuthaditjhaba-L 297 | B135: PHUTHADITJHABA-L297 | C135: Phuthaditjhaba-L 297 (Re-Allocation PC 1432 Stock) | D135: 3,934.28
A136: Phuthaditjhaba-L 298 | B136: PHUTHADITJHABA-L298 | C136: Phuthaditjhaba-L 298 (Re-Allocation PC 1432 Stock) | D136: 14,749.31
A137: Tshiame-B 305 | B137: TSHIAME-B305 | C137: Tshiame-B 305 (Re-Allocation PC 1432 Stock) | D137: 1.00
A138: Tshiame-B 306 | B138: TSHIAME-B306 | C138: Tshiame-B 306 (Re-Allocation PC 1432 Stock) | D138: 1.00
A139: Tshiame-B 309 | B139: TSHIAME-B309 | C139: Tshiame-B 309 (Re-Allocation PC 1432 Stock) | D139: 1.00
A140: Phuthaditjhaba-L 310 | B140: PHUTHADITJHABA-L310 | C140: Phuthaditjhaba-L 310 (Re-Allocation PC 1432 Stock) | D140: 531.90
A141: Tshiame-B 312 | B141: TSHIAME-B312 | C141: Tshiame-B 312 (Re-Allocation PC 1432 Stock) | D141: 1.00
A142: Tshiame-B 313 | B142: TSHIAME-B313 | C142: Tshiame-B 313 (Re-Allocation PC 1432 Stock) | D142: 1.00
A143: Tshiame-B 323 | B143: TSHIAME-B323 | C143: Tshiame-B 323 (Re-Allocation PC 1432 Stock) | D143: 1.00
A144: Phuthaditjhaba-L 340 | B144: PHUTHADITJHABA-L340 | C144: Phuthaditjhaba-L 340 (Re-Allocation PC 1432 Stock) | D144: 538.90
A145: Phuthaditjhaba-N 408 | B145: PHUTHADITJHABA-N408 | C145: Phuthaditjhaba-N 408 (Re-Allocation PC 1432 Stock) | D145: 5,870.52
A146: Phuthaditjhaba-N 438 | B146: PHUTHADITJHABA-N438 | C146: Phuthaditjhaba-N 438 (Re-Allocation PC 1432 Stock) | D146: 54.21
A147: Phuthaditjhaba-N 446 | B147: PHUTHADITJHABA-N446 | C147: Phuthaditjhaba-N 446 (Re-Allocation PC 1432 Stock) | D147: 4,767.45
A148: Phuthaditjhaba-K 479 | B148: PHUTHADITJHABA-K479 | C148: Phuthaditjhaba-K 479 (Re-Allocation PC 1432 Stock) | D148: 31.00
A149: Phuthaditjhaba-K 528 | B149: PHUTHADITJHABA-K528 | C149: Phuthaditjhaba-K 528 (Re-Allocation PC 1432 Stock) | D149: 4,448.60
A150: Phuthaditjhaba-N 548 | B150: PHUTHADITJHABA-N548 | C150: Phuthaditjhaba-N 548 (Re-Allocation PC 1432 Stock) | D150: 4,341.40
A151: Tshiame-B 555 | B151: TSHIAME-B555 | C151: Tshiame-B 555 (Re-Allocation PC 1432 Stock) | D151: 1.00
A152: Tshiame-B 556 | B152: TSHIAME-B556 | C152: Tshiame-B 556 (Re-Allocation PC 1432 Stock) | D152: 1.00
A153: Tshiame-B 563 | B153: TSHIAME-B563 | C153: Tshiame-B 563 (Re-Allocation PC 1432 Stock) | D153: 1.00
A154: Phuthaditjhaba-N 582 | B154: PHUTHADITJHABA-N582 | C154: Phuthaditjhaba-N 582 (Re-Allocation PC 1432 Stock) | D154: 10,000.00
A155: Tshiame-B 583 | B155: TSHIAME-B583 | C155: Tshiame-B 583 (Re-Allocation PC 1432 Stock) | D155: 1.00
A156: Tshiame-B 624 | B156: TSHIAME-B624 | C156: Tshiame-B 624 (Re-Allocation PC 1432 Stock) | D156: 1.00
A157: Tshiame-B 636 | B157: TSHIAME-B636 | C157: Tshiame-B 636 (Re-Allocation PC 1432 Stock) | D157: 1.00
A158: Tshiame-B 638 | B158: TSHIAME-B638 | C158: Tshiame-B 638 (Re-Allocation PC 1432 Stock) | D158: 1.00
A159: Tshiame-B 640 | B159: TSHIAME-B640 | C159: Tshiame-B 640 (Re-Allocation PC 1432 Stock) | D159: 1.00
A160: Tshiame-B 642 | B160: TSHIAME-B642 | C160: Tshiame-B 642 (Re-Allocation PC 1432 Stock) | D160: 1.00
A161: Phuthaditjhaba-N 645 | B161: PHUTHADITJHABA-N645 | C161: Phuthaditjhaba-N 645 (Re-Allocation PC 1432 Stock) | D161: 4,022.54
A162: Tshiame-B 647 | B162: TSHIAME-B647 | C162: Tshiame-B 647 (Re-Allocation PC 1432 Stock) | D162: 1.00
A163: Tshiame-B 649 | B163: TSHIAME-B649 | C163: Tshiame-B 649 (Re-Allocation PC 1432 Stock) | D163: 1.00
A164: Phuthaditjhaba-N 656 | B164: PHUTHADITJHABA-N656 | C164: Phuthaditjhaba-N 656 (Re-Allocation PC 1432 Stock) | D164: 4,171.52
A165: Phuthaditjhaba-N 662 | B165: PHUTHADITJHABA-N662 | C165: Phuthaditjhaba-N 662 (Re-Allocation PC 1432 Stock) | D165: 4,171.52
A166: Phuthaditjhaba-N 673 | B166: PHUTHADITJHABA-N673 | C166: Phuthaditjhaba-N 673 (Re-Allocation PC 1432 Stock) | D166: 4,767.45
A167: Tshiame-B 686 | B167: TSHIAME-B686 | C167: Tshiame-B 686 (Re-Allocation PC 1432 Stock) | D167: 1.00
A168: Phuthaditjhaba-N 690 | B168: PHUTHADITJHABA-N690 | C168: Phuthaditjhaba-N 690 (Re-Allocation PC 1432 Stock) | D168: 5,363.38
A169: Phuthaditjhaba-N 691 | B169: PHUTHADITJHABA-N691 | C169: Phuthaditjhaba-N 691 (Re-Allocation PC 1432 Stock) | D169: 6,123.20
A170: Phuthaditjhaba-L 735 | B170: PHUTHADITJHABA-L735 | C170: Phuthaditjhaba-L 735 (Re-Allocation PC 1432 Stock) | D170: 7,552.12
A171: Phuthaditjhaba-N 738 | B171: PHUTHADITJHABA-N738 | C171: Phuthaditjhaba-N 738 (Re-Allocation PC 1432 Stock) | D171: 5,050.52
A172: Phuthaditjhaba-N 739 | B172: PHUTHADITJHABA-N739 | C172: Phuthaditjhaba-N 739 (Re-Allocation PC 1432 Stock) | D172: 4,171.52
A173: Tshiame-B 746 | B173: TSHIAME-B746 | C173: Tshiame-B 746 (Re-Allocation PC 1432 Stock) | D173: 1.00
A174: Phuthaditjhaba-N 764 | B174: PHUTHADITJHABA-N764 | C174: Phuthaditjhaba-N 764 (Re-Allocation PC 1432 Stock) | D174: 49.28
A175: Phuthaditjhaba-N 914 | B175: PHUTHADITJHABA-N914 | C175: Phuthaditjhaba-N 914 (Re-Allocation PC 1432 Stock) | D175: 4,638.45
A176: Phuthaditjhaba-N 931 | B176: PHUTHADITJHABA-N931 | C176: Phuthaditjhaba-N 931 (Re-Allocation PC 1432 Stock) | D176: 5,002.42
A177: Phuthaditjhaba-N 967 | B177: PHUTHADITJHABA-N967 | C177: Phuthaditjhaba-N 967 (Re-Allocation PC 1432 Stock) | D177: 4,067.23
A178: Phuthaditjhaba-N 976 | B178: PHUTHADITJHABA-N976 | C178: Phuthaditjhaba-N 976 (Re-Allocation PC 1432 Stock) | D178: 3,919.32
A179: Phuthaditjhaba-N 977 | B179: PHUTHADITJHABA-N977 | C179: Phuthaditjhaba-N 977 (Re-Allocation PC 1432 Stock) | D179: 2,175.15
A180: Tshiame-B 977 | B180: TSHIAME-B977 | C180: Tshiame-B 977 (Re-Allocation PC 1432 Stock) | D180: 1.00
A181: Phuthaditjhaba-N 979 | B181: PHUTHADITJHABA-N979 | C181: Phuthaditjhaba-N 979 (Re-Allocation PC 1432 Stock) | D181: 7,178.68
A182: Phuthaditjhaba-N 1095 | B182: PHUTHADITJHABA-N1095 | C182: Phuthaditjhaba-N 1095 (Re-Allocation PC 1432 Stock) | D182: 9,534.91
A183: Phuthaditjhaba-L 1503 | B183: PHUTHADITJHABA-L1503 | C183: Phuthaditjhaba-L 1503 (Re-Allocation PC 1432 Stock) | D183: 3,873.56
A184: Phuthaditjhaba-L 1511 | B184: PHUTHADITJHABA-L1511 | C184: Phuthaditjhaba-L 1511 (Re-Allocation PC 1432 Stock) | D184: 3,873.56
A185: Phuthaditjhaba-L 1513 | B185: PHUTHADITJHABA-L1513 | C185: Phuthaditjhaba-L 1513 (Re-Allocation PC 1432 Stock) | D185: 3,873.56
A186: Phuthaditjhaba-L 1514 | B186: PHUTHADITJHABA-L1514 | C186: Phuthaditjhaba-L 1514 (Re-Allocation PC 1432 Stock) | D186: 3,873.56
A187: Phuthaditjhaba-L 1526 | B187: PHUTHADITJHABA-L1526 | C187: Phuthaditjhaba-L 1526 (Re-Allocation PC 1432 Stock) | D187: 3,124.00
A188: Tshiame-B 1538 | B188: TSHIAME-B1538 | C188: Tshiame-B 1538 (Re-Allocation PC 1432 Stock) | D188: 1.00
A189: Phuthaditjhaba-L 1566 | B189: PHUTHADITJHABA-L1566 | C189: Phuthaditjhaba-L 1566 (Re-Allocation PC 1432 Stock) | D189: 5,169.71
A190: Phuthaditjhaba-L 1572 | B190: PHUTHADITJHABA-L1572 | C190: Phuthaditjhaba-L 1572 (Re-Allocation PC 1432 Stock) | D190: 5,005.83
A191: Phuthaditjhaba-L 1573 | B191: PHUTHADITJHABA-L1573 | C191: Phuthaditjhaba-L 1573 (Re-Allocation PC 1432 Stock) | D191: 5,452.77
A192: Phuthaditjhaba-L 1594 | B192: PHUTHADITJHABA-L1594 | C192: Phuthaditjhaba-L 1594 (Re-Allocation PC 1432 Stock) | D192: 4,022.54
A193: Phuthaditjhaba-L 1599 | B193: PHUTHADITJHABA-L1599 | C193: Phuthaditjhaba-L 1599 (Re-Allocation PC 1432 Stock) | D193: 4,290.71
A194: Phuthaditjhaba-L 1608 | B194: PHUTHADITJHABA-L1608 | C194: Phuthaditjhaba-L 1608 (Re-Allocation PC 1432 Stock) | D194: 4,070.06
A195: Phuthaditjhaba-L 1609 | B195: PHUTHADITJHABA-L1609 | C195: Phuthaditjhaba-L 1609 (Re-Allocation PC 1432 Stock) | D195: 4,022.54
A196: Tshiame-B 1613 | B196: TSHIAME-B1613 | C196: Tshiame-B 1613 (Re-Allocation PC 1432 Stock) | D196: 1.00
A197: Phuthaditjhaba-L 1617 | B197: PHUTHADITJHABA-L1617 | C197: Phuthaditjhaba-L 1617 (Re-Allocation PC 1432 Stock) | D197: 6,301.98
A198: Phuthaditjhaba-L 1623 | B198: PHUTHADITJHABA-L1623 | C198: Phuthaditjhaba-L 1623 (Re-Allocation PC 1432 Stock) | D198: 4,022.54
A199: Phuthaditjhaba-L 1626 | B199: PHUTHADITJHABA-L1626 | C199: Phuthaditjhaba-L 1626 (Re-Allocation PC 1432 Stock) | D199: 7,687.52
A200: Phuthaditjhaba-L 1627 | B200: PHUTHADITJHABA-L1627 | C200: Phuthaditjhaba-L 1627 (Re-Allocation PC 1432 Stock) | D200: 5,577.49
A201: 6413 Bohlokong | B201: 6413BOHLOKONG | C201: 6413 Bohlokong (Re-Allocation PC 1432 Stock) | D201: 24,000.00
A202: 6425 Bohlokong | B202: 6425BOHLOKONG | C202: 6425 Bohlokong (Re-Allocation PC 1432 Stock) | D202: 28,000.00
A203: 6486 Bohlokong | B203: 6486BOHLOKONG | C203: 6486 Bohlokong (Re-Allocation PC 1432 Stock) | D203: 21,921.06
A204: 6532 Bohlokong | B204: 6532BOHLOKONG | C204: 6532 Bohlokong (Re-Allocation PC 1432 Stock) | D204: 23,746.50
A205: 6577 Bohlokong | B205: 6577BOHLOKONG | C205: 6577 Bohlokong (Re-Allocation PC 1432 Stock) | D205: 26,000.00
A206: 6590 Bohlokong | B206: 6590BOHLOKONG | C206: 6590 Bohlokong (Re-Allocation PC 1432 Stock) | D206: 25,363.30
A207: 6605 Bohlokong | B207: 6605BOHLOKONG | C207: 6605 Bohlokong (Re-Allocation PC 1432 Stock) | D207: 33,000.00
A208: 6645 Bohlokong | B208: 6645BOHLOKONG | C208: 6645 Bohlokong (Re-Allocation PC 1432 Stock) | D208: 23,519.90
... 125 more rows
